Workbook

Sheet Cover Page
D1: Add company logo
K2: Template version 25.1a (for incinerators) - 27/11/25
K4: Note that there is another version of this template available for co-incinerators
B8: Add photo
K13: Notes:
K14: This template may require adjustments by individual operators to meet specific reporting requirements as defined in the site Permit(s)
B29: Annual Performance Report 2025
B31: Permit EPR/SP3409LC
B33: Ellesmere Port Incinerator
B35: other name of facility (if applicable)
B37: Veolia ES (UK) Ltd
B39: Year: | C39: 2025
B41: Address: | C41: Bridges Road, Ellesmere Port, CH65 4EQ
B43: Tel: | C43: 0203 567 4564
B45: Email: | C45: jessica.roberts@veolia.com
B47: Prepared by: | C47: Jessica Roberts | F47: Position: | G47: Head of Compliance
B49: Approved by: | C49: Angela Bergquist | F49: Position: | G49: General Manager
B51: Version: | C51: 1
B53: Issue Date: | C53: 2026-01-31

Sheet Facility Info
A1: =+'Cover Page'!$B$29 -> Annual Performance Report 2025 | E1: =+'Cover Page'!$B$33 -> Ellesmere Port Incinerator
A3: Plant Description and Design | K3: Notes:
A5: The main purpose of the facility is disposal of solid and liquid hazardous waste by incineration as well as some non-hazardous wastes. The design capacity is 15 tonnes per hour. The facility also includes a transfer activity where wastes are stored prior to transfer to other facilities. Solid and liquid wastes are delivered in bulk tankers or drums. Gaseous wastes are also accepted. | K5: Include summary of plant design, design capacity, no. of combustion lines, electrical and heat capacity and any other general information that describes the facility, its location and purpose
A20: Summary of Operational Processes and Procedures
A22: Wastes are analysed, at an appropriate frequency, to confirm that the waste is as described, segregated and stored for incineration. Drummed solid wastes are transferred to the incinerator by a dedicated, automated drum feed system. Packaged materials are fed via a manually operated airlock charging system. Wastes are burned in the rotary kiln furnace. Combustion gases pass into secondary combustion chamber to ensure efficient combustion. Combustion gases are then cooled to minimise the time the gases are in the dioxin re-formation temperature zone. Particulates are collected in an ash hopper at the base of this section. Exhaust gases are then cleaned in a wet scrubbing system that consists of two scrubbing towers. The scrubbing system abates acid gases and further cools the exhaust gases. Lime injection is used to further remove acid gases. Exhaust gases are reheated to avoid condensation and then passed through a bag filter to abate particulates. Continuous emission monitoring is undertaken in the horizontal duct section after the bag filter section (prior to the re-injection of hot air). Acidic aqueous effluent from the scrubbers is treated on site by neutralisation, flocculation, settlement and dewatering. The effluent is then discharged to the River Gowy. Exhaust gases are emitted via an 80 m high stack. Emissions are monitored continuously or periodically for some pollutants, in line with the permit requirements. An environmental management system accredited to ISO 14001 is used. | K22: Include summary of key processes and procedures such as (but not limited to); waste reception, control rooms, grate, bed and boiler, energy & heat generation, cooling systems, residue management, emission controls, health and safety systems, maintenance

Sheet Operational Data
A1: =+'Cover Page'!$B$29 -> Annual Performance Report 2025 | E1: =+'Cover Page'!$B$33 -> Ellesmere Port Incinerator
A3: Operational Data
A4: Plant Size: | B4: 100000 | D4: tonnes pa | J4: Notes:
A5: Nominal net thermal input: | C5: MWth | J5: * Export capacity = nominal generation capacity at the generator terminals minus nominal parasitic load. ** CHP and district heating plants only - put N/A if no heat export. *** Combusted tonnage = tonnes delivered in period + (tonnes in bunker at start of period – tonnes in bunker at end of period), or equivalent calculation depending on plant type **** Availability Definition: The availability of a line is to be calculated by the number of hours the line reported Continuously Monitored emission levels to the Regulator through the calendar year divided by the total number of hours in that year. The overall plant availability is calculated as the mean of all lines in the plant. For clarity this includes periods of abnormal operation. Rationale: The primary function of an Energy from Waste facility is the disposal of waste. It follows therefore that the availability of a plant is determined by the period of time a facility spends undertaking this activity. *****NCV of waste: This should be completed for all plants which have a boiler. Calculate using total thermal power produced by boiler/boiler efficiency, or other suitable calculation.
A6: Nominal electrical export capacity*: | B6: 0 | C6: MWe
A7: Nominal heat export capacity**: | B7: 0 | C7: MWth
A8: No. of combustion lines: | B8: 1 | C8: No. of steam turbines: | E8: 0
A10: Waste types received | B10: Unit | C10: Q1 | D10: Q2 | E10: Q3 | F10: Q4 | G10: Year Total | H10: %
A11: Household / Local Authority | B11: tonnes | C11: 0 | D11: 0 | E11: 0 | F11: 0 | G11: =SUM(C11:F11) -> 0 | H11: =IF(G11>0,G11/$G$21,"-") -> -
A12: Commercial & Industrial | C12: 0 | D12: 0 | E12: 0 | F12: 0 | G12: =SUM(C12:F12) -> 0 | H12: -
A13: Hazardous | C13: 19829.37 | D13: 14523.17 | E13: 14998.98 | F13: 14840.13 | G13: 64191.65 | H13: 0.9559659364
A14: Clinical | C14: 405 | D14: 305.66 | E14: 259.37 | F14: 290.52 | G14: 1260.55 | H14: 0.01877257963
A15: Waste wood (biomass) | C15: 0 | D15: 0 | E15: 0 | F15: 0 | G15: 0 | H15: -
A16: Refuse Derived Fuel (incl. SRF) - H'hold/LA | C16: 0 | D16: 0 | E16: 0 | F16: 0 | G16: =SUM(C16:F16) -> 0 | H16: -
A17: Refuse Derived Fuel (incl. SRF) - C&I | C17: 0 | D17: 0 | E17: 0 | F17: 0 | G17: 0 | H17: -
A18: Non Hazardous | C18: 112.93 | D18: 101.87 | E18: 61.54 | F18: 317.87 | G18: 594.21 | H18: 0.008849196415
A19: TFS | C19: 0 | D19: 0.98 | E19: 0 | F19: 0 | G19: 0.98 | H19: 1.459452464e-05
A20: LLW | C20: 244.58 | D20: 146.17 | E20: 546.71 | F20: 163.62 | G20: 1101.08 | H20: 0.01639769305
A21: Total waste received | C21: =SUM(C11:C20) -> 20591.88 | D21: =SUM(D11:D20) -> 15077.85 | E21: =SUM(E11:E20) -> 15866.6 | F21: =SUM(F11:F20) -> 15612.14 | G21: 67148.47
A22: Rejected Waste | C22: 71.16 | D22: 273.84 | E22: 158.64 | F22: 108.22 | G22: =SUM(C22:F22) -> 611.86 | H22: =IF(G22>0,G22/$G$21,"-") -> 0.009112046782
A23: Unprocessed waste transferred out | C23: =-D23-C230 -> 0 | D23: 0 | E23: 0 | F23: 0 | G23: =SUM(C23:F23) -> 0 | H23: =IF(G23>0,G23/$G$21,"-") -> -
A24: Total waste combusted *** | C24: 19265 | D24: 15399 | E24: 16228.8 | F24: 14953.7 | G24: =SUM(C24:F24) -> 65846.5
A26: Energy Usage / Export | B26: Unit | C26: Q1 | D26: Q2 | E26: Q3 | F26: Q4 | G26: Year Total | H26: KWh/te | J26: Password for protected cells A password has been set to prevent accidental editing of cells with formulae. If you still need to make an edit for some reason then the password = 1234
A27: Power generated at generator terminals | B27: MWh | C27: 0 | D27: 0 | E27: 0 | F27: 0 | G27: =SUM(C27:F27) -> 0 | H27: =IF(G27>0,G27*1000/$G$24,"-") -> -
A28: Power exported to grid and other external user(s) | C28: 0 | D28: 0 | E28: 0 | F28: 0 | G28: =SUM(C28:F28) -> 0 | H28: =IF(G28>0,G28*1000/$G$24,"-") -> -
A29: Power imported | C29: 0 | D29: 0 | E29: 0 | F29: 0 | G29: 0 | H29: =IF(G29>0,G29*1000/$G$24,"-") -> -
A30: Indicative parasitic load | B30: % | C30: =IF(C27>0,(C27-C28)/C27,"-") -> - | D30: =IF(D27>0,(D27-D28)/D27,"-") -> - | E30: - | F30: - | G30: =IF(G27>0,1-G28/(G27+G29),"-") -> -
A31: Thermal Energy Exported ** | C31: 0 | D31: 0 | E31: 0 | F31: 0 | G31: =SUM(C31:F31) -> 0 | H31: =IF(G31>0,G31*1000/$G$24,"-") -> -
A32: R1 value (if applicable) | B32: R1 | C32: - | D32: - | E32: - | F32: - | G32: 0
A34: Waste Disposal & Recovery | B34: Unit | C34: Q1 | D34: Q2 | E34: Q3 | F34: Q4 | G34: Year Total | H34: % inputs
A35: APC Residues - produced | B35: tonnes | C35: 0 | D35: 0 | E35: 0 | F35: 0 | G35: =SUM(C35:F35) -> 0 | H35: =IF(G35>0,G35/$G$24,"-") -> -
A36: IBA - produced | C36: 809.54 | D36: 1028.32 | E36: 688.85 | F36: 617.54 | G36: 3144.25 | H36: =IF(G36>0,G36/$G$24,"-") -> 0.04775120925
A37: Metals recycling | C37: 11.24 | D37: 22.76 | E37: 4.62 | F37: 2.96 | G37: =SUM(C37:F37) -> 41.58 | H37: 0.000631468643
A38: Filtercake- Hazardous | C38: 1412.87 | D38: 1318.56 | E38: 1312.57 | F38: 986.54 | G38: =SUM(C38:F38) -> 5030.54 | H38: 0.07639798623
A39: Filtercake- Non Hazardous | C39: 47.72 | D39: 23.92 | E39: 52.88 | F39: 341.28 | G39: 465.8 | H39: 0.007074028232
A40: Ferrous Metal from IBA | C40: 100.7 | D40: 33.9 | E40: 19.96 | F40: 0 | G40: 154.56 | H40: 0.00234727738
A42: Raw Material Usage | B42: Unit | C42: Q1 | D42: Q2 | E42: Q3 | F42: Q4 | G42: Year Total | H42: Qty./te
A43: Mains Water- Towns | B43: ltrs | C43: 4964000 | D43: 5035000 | E43: 4884000 | F43: 5353000 | G43: =SUM(C43:F43) -> 20236000 | H43: =IF(G43>0,G43/$G$24,"-") -> 307.3208143
A44: Other Water- Dee | B44: ltrs | C44: 41864000 | D44: 53058000 | E44: 46737000 | F44: 87587000 | G44: 229246000 | H44: =IF(G44>0,G44/$G$24,"-") -> 3481.521417
A45: Ammonia | B45: kgs | C45: 0 | D45: 0 | E45: 0 | F45: 0 | G45: 0 | H45: -
A46: Urea | B46: kgs | C46: 56000 | D46: 56000 | E46: 56000 | F46: 56000 | G46: =SUM(C46:F46) -> 224000 | H46: 3.401851275
A47: Activated Carbon | B47: kgs | C47: 0 | D47: 0 | E47: 0 | F47: 0 | G47: 0 | H47: -
A48: Lime / hydrated lime | B48: kgs | C48: 440280 | D48: 609420 | E48: 460080 | F48: 516800 | G48: 2026580 | H48: 30.7773382
A49: Fuel oil | B49: ltrs | C49: 209900 | D49: 256980 | E49: 192690 | F49: 318620 | G49: 978190 | H49: 14.85561116
A50: Gas | B50: m3 | C50: 0 | D50: 0 | E50: 0 | F50: 0 | G50: 0 | H50: -
A51: Caustic | B51: lts | C51: 607610 | D51: 621060 | E51: 540430 | F51: 513740 | G51: 2282840 | H51: 34.66911681
A53: Summary | B53: Line/Unit | C53: Q1 | D53: Q2 | E53: Q3 | F53: Q4 | G53: Year Total | I53: Hrs in year
A54: Availability of waste combustion by line, hrs **** | B54: 1 | C54: 2112.26 | D54: 1891.13 | E54: 1813.87 | F54: 1884.53 | G54: =SUM(C54:F54) -> 7701.79 | H54: =+G54/$I$54 -> 0.8791997717 | I54: 8760 | J54: Change this figure to 8784 in a leap year
B55: 2 | G55: 0 | H55: =+G55/$I$54 -> 0
B56: 3 | G56: 0 | H56: 0
B57: 4 | G57: 0 | H57: 0
B58: 5 | G58: =SUM(C58:F58) -> 0 | H58: 0
A59: Hours of turbine operations, hrs | B59: 1 | C59: 0 | D59: 0 | E59: 0 | F59: 0 | G59: 0 | H59: 0
A60: Hours of turbine operations, hrs | B60: 2 | C60: 0 | D60: 0 | E60: 0 | F60: 0 | G60: 0 | H60: 0
A61: Hours of heat / steam export** | B61: hours | C61: 0 | D61: 0 | E61: 0 | F61: 0 | G61: 0 | H61: =IF(B61>0,G60/I54,"n/a") -> 0
A62: Net calorific value of waste***** | B62: MJ/kg | C62: 0 | D62: 0 | E62: 0 | F62: 0 | G62: 0
A63: Abnormal operation events | B63: qty. | C63: 2 | D63: 0 | E63: 0 | F63: 0 | G63: 2 | H63: =IF(G63>0,"yes","no") -> yes
A64: Abnormal operation duration | B64: hours | C64: 7.08 | D64: 0 | E64: 0 | F64: 0 | G64: 7.08 | H64: =+(G64)/I54 -> 0.0008082191781
A65: Permit Breaches | B65: qty. | C65: 0 | D65: 0 | E65: 0 | F65: 0 | G65: 0 | H65: =IF(G65>0,"yes","no") -> no

Sheet Operational Summary
A1: =+'Cover Page'!$B$29 -> Annual Performance Report 2025 | E1: =+'Cover Page'!$B$33 -> Ellesmere Port Incinerator
A3: Summary of Plant Operations and Maintenance during the reporting year | K3: Notes:
A5: Plant availability was down compared to budget- 87.9% vs. 89.45% budget. 7701 hours online with 528 hours off for planned maintenance and 531 off for unplanned maintenance. No major outage in 2025. Next major shutdown is planned for April-May 2026. Unplanned maintenance events included South Recuperator Repair, 24V DC Incomer Electrical Fault and ID fan bearing failure. 45hrs off-waste related to planned industrial action that was called off at the last minute but the plant had already been put into a safe state. 65847 tonnes of waste processed in 2025. New streams included AFFF containing PFAS of which we processed 1200 tonnes. | K5: Include summary of key operational and/or maintenance activity undertaken in the year, such as any major component upgrades and/or replacements
A29: Unplanned maintenance events include South recuperator repair, 24V DC incomer electrical fault | B29: Plant shut-downs
A30: Start date | B30: End date | C30: Reason for shut-down | K30: Provide a very brief reason for plant shut-down e.g. "Shut-down prior to major outage"; "Emergency shut-down due to boiler tube leak". All emergency shut-downs must be listed (irrespective of whether or not they were required to be reported to the EA). There is no need to include periods of hot-standby here (e.g. to clear feed chute hopper blockages). For clinical waste incinerators which require regular shut-downs for boiler cleaning, there is no need to record these here (only those prior to major outages, and emergency shut-downs).
A31: 2025-01-06 | B31: 2025-01-07 | C31: Planned soak to fix damage to the south recuperator shell.
A32: 2025-01-07 | B32: 2025-01-07 | C32: Issue with lime feed system into the fabric filter and subsequent seating of the by-pass damper.
A33: 2025-02-14 | B33: 2025-02-14 | C33: 24V DC incomer supply crimped terminal overheated, damaging cable due to arcing.
A34: 2025-03-04 | B34: 2025-03-04 | C34: Replacement of the process water spill back valve.
A35: 2025-06-17 | B35: 2025-06-17 | C35: Power trip and subsequent firing of the emergency vent.
A36: 2025-06-26 | B36: 2025-06-27 | C36: Strike action preparation.
A37: 2025-07-06 | B37: 2025-07-06 | C37: Fabric filter investigation.
A38: 2025-07-23 | B38: 2025-07-23 | C38: Power loss due to Scottish Power work external to site.
A39: 2025-09-04 | B39: 2025-09-05 | C39: ID Fan fault.
A40: 2025-09-10 | B40: 2025-09-11 | C40: Sat vent blockage clearance.
A41: 2025-10-31 | B41: 2025-10-31 | C41: Demister pull and clean.
A42: 2025-11-20 | B42: 2025-11-22 | C42: Fabric filter sock replacement.
A43: 2025-12-08 | B43: 2025-12-11 | C43: ID fan bearing failure and replacement.
A44: 2025-12-16 | B44: 2025-12-19 | C44: Pressure release from drum raised the SCC pressure to 5mbar causing safety shutoff. Subsequent repair of the front wall kin shoes required.

Sheet Perf. Form 1
A1: =+'Cover Page'!C39 -> 2025 | B1: Annual Reporting Performance Form 1
A3: =+'Cover Page'!B31 -> Permit EPR/SP3409LC | F3: Operator: | G3: =+'Cover Page'!B37 -> Veolia ES (UK) Ltd
A4: Facility: | B4: =+'Cover Page'!B33:I33 -> Ellesmere Port Incinerator | F4: Form: | G4: Performance 1
A6: Reporting Period from: | D6: 2025-01-01 | F6: to: | G6: 2025-12-31
A8: =+A1 -> 2025 | B8: Annual Reporting of Waste Disposal and Recovery
A9: Waste Description | C9: Disposal Route(s) | E9: Disposal Tonnes | G9: Recovery Tonnes | I9: % / tonne of waste incinerated
A10: 1) Hazardous Wastes
A11: APC Residues | C11: 0 | E11: 0 | G11: 0 | I11: =IF((E11+G11)>0,(E11+G11)/'Operational Data'!$G$24, "-") -> -
A12: IBA | C12: 1 | E12: 3144.25 | G12: 0 | I12: =IF((E12+G12)>0,(E12+G12)/'Operational Data'!$G$24, "-") -> 0.04775120925
A13: Filtercake | C13: 1 | E13: 5030.56 | G13: 0 | I13: =IF((E13+G13)>0,(E13+G13)/'Operational Data'!$G$24, "-") -> 0.07639828996
A14: Empty IBC's/Drums | C14: 1 | E14: 0 | G14: 20.51 | I14: =IF((E14+G14)>0,(E14+G14)/'Operational Data'!$G$24, "-") -> 0.0003114820074
A15: Fluorescent Tubes | C15: 1 | E15: 0 | G15: 0.038 | I15: =IF((E15+G15)>0,(E15+G15)/'Operational Data'!$G$24, "-") -> 5.770997699e-07
A16: Oily Sludge/Bitumen | C16: 1 | E16: 0.88 | G16: 0 | I16: =IF((E16+G16)>0,(E16+G16)/'Operational Data'!$G$24, "-") -> 1.336441572e-05
A17: Lagging | C17: 1 | E17: 5.12 | G17: 0 | I17: =IF((E17+G17)>0,(E17+G17)/'Operational Data'!$G$24, "-") -> 7.775660058e-05
A18: Solids from Flue Gas | C18: 1 | E18: 63.2 | G18: 0 | I18: =IF((E18+G18)>0,(E18+G18)/'Operational Data'!$G$24, "-") -> 0.0009598080384
A19: Total Hazardous Waste | E19: =SUM(E11:F18) -> 8244.01 | G19: =SUM(G11:H18) -> 20.548 | I19: =IF((E19+G19)>0,(E19+G19)/'Operational Data'!$G$24, "-") -> 0.1255124874
A21: 2) Non-Hazardous Wastes
A22: IBA | C22: 0 | E22: 0 | G22: 0 | I22: =IF((E22+G22)>0,(E22+G22)/'Operational Data'!$G$24, "-") -> -
A23: Ferrous Metal | C23: 1 | E23: 0 | G23: 42 | I23: =IF((E23+G23)>0,(E23+G23)/'Operational Data'!$G$24, "-") -> 0.0006378471141
A24: Process Water | C24: 0 | E24: 0 | G24: 0 | I24: =IF((E24+G24)>0,(E24+G24)/'Operational Data'!$G$24, "-") -> -
A25: Filtercake | C25: 1 | E25: 465.8 | G25: 0 | I25: =IF((E25+G25)>0,(E25+G25)/'Operational Data'!$G$24, "-") -> 0.007074028232
A26: Wooden Pallets | C26: 1 | E26: 0 | G26: 753.7 | I26: =IF((E26+G26)>0,(E26+G26)/'Operational Data'!$G$24, "-") -> 0.01144631833
A27: Empty IBC's/Drums | C27: 1 | E27: 0 | G27: 3.3 | I27: =IF((E27+G27)>0,(E27+G27)/'Operational Data'!$G$24, "-") -> 5.011655897e-05
A28: Refractory Rubble | C28: 1 | E28: 55.5 | G28: 0 | I28: =IF((E28+G28)>0,(E28+G28)/'Operational Data'!$G$24, "-") -> 0.0008428694008
A29: Wood | C29: 1 | E29: 0 | G29: 30.26 | I29: =IF((E29+G29)>0,(E29+G29)/'Operational Data'!$G$24, "-") -> 0.0004595536589
A30: Wood- Grade C | C30: 1 | E30: 0 | G30: 28.44 | I30: =IF((E30+G30)>0,(E30+G30)/'Operational Data'!$G$24, "-") -> 0.0004319136173
A31: Plastics | C31: 1 | E31: 0 | G31: 1.36 | I31: =IF((E31+G31)>0,(E31+G31)/'Operational Data'!$G$24, "-") -> 2.065409703e-05
A32: Cardboard | C32: 1 | E32: 0 | G32: 25.57 | I32: =IF((E32+G32)>0,(E32+G32)/'Operational Data'!$G$24, "-") -> 0.0003883273978
A33: General Industrial | C33: 1 | E33: 0.64 | G33: 0 | I33: =IF((E33+G33)>0,(E33+G33)/'Operational Data'!$G$24, "-") -> 9.719575072e-06
A34: Non Hazardous Industrial | C34: 1 | E34: 0 | G34: 29.45 | I34: =IF((E34+G34)>0,(E34+G34)/'Operational Data'!$G$24, "-") -> 0.0004472523217
A35: Ferrous Metal from IBA | C35: 1 | E35: 154.56 | G35: 0 | I35: =IF((E35+G35)>0,(E35+G35)/'Operational Data'!$G$24, "-") -> 0.00234727738
A36: Total Non-Hazardous Waste | E36: =SUM(E22:F35) -> 676.5 | G36: =SUM(G22:H35) -> 914.08 | I36: =IF((E36+G36)>0,(E36+G36)/'Operational Data'!$G$24, "-") -> 0.02415587769
A37: TOTAL WASTE | E37: =+E36+E19 -> 8920.51 | G37: =+G36+G19 -> 934.628 | I37: =IF((E37+G37)>0,(E37+G37)/'Operational Data'!$G$24, "-") -> 0.1496683651
A39: Operator’s comments :
A44: =+A1 -> 2025 | B44: Annual Reporting of Water and Other Raw Material Usage
A45: Raw Material | E45: Usage | G45: Unit | H45: Specific Usage | J45: Unit
A46: Mains Water | E46: =+'Operational Data'!G43/1000 -> 20236 | G46: m3 | H46: =IF(E46>0,E46/'Operational Data'!$G$24,"-") -> 0.3073208143 | J46: m3/te
A47: Total Water | E47: =+'Operational Data'!G44+'Operational Data'!G43/1000 -> 229266236 | G47: m3 | H47: =IF(E47>0,E47/'Operational Data'!$G$24,"-") -> 3481.828738 | J47: m3/te
A48: Urea / Ammonia | E48: =+'Operational Data'!G45 -> 0 | G48: kg | H48: =IF(E48>0,E48/'Operational Data'!$G$24,"-") -> - | J48: kg/te
A49: Activated Carbon | E49: =+'Operational Data'!G47 -> 0 | G49: kg | H49: =IF(E49>0,E49/'Operational Data'!$G$24,"-") -> - | J49: kg/te
A50: Lime / hydrated lime / Sodium Bicarb. | E50: =+'Operational Data'!G48 -> 2026580 | G50: kg | H50: =IF(E50>0,E50/'Operational Data'!$G$24,"-") -> 30.7773382 | J50: kg/te
A52: Operator’s comments :
A56: =+A44 -> 2025 | B56: Annual Reporting of other performance indicators
A57: Parameter | C57: Results by Line
C58: A1 | D58: A2 | E58: A3 | F58: A4 | G58: A5 | I58: Turbine 1 | J58: Turbine 2
A59: Operating hours for the year, hours | C59: 7701.53
A60: Number of periods of abnormal operation, qty. | C60: 2
A61: Cumulative hours of abnormal operation for this year, hours | C61: 7
A63: Operator’s comments :
A64: Gowy water not included in water totals. Abstracted= 1507042m3 Discharged= 1421480m3
A67: Signed: | B67: J. Roberts | G67: Date: | H67: 2026-01-29

Sheet Energy Form 1
A1: =+'Cover Page'!C39 -> 2025 | B1: Annual Reporting of Energy Usage/Export
A3: =+'Cover Page'!B31 -> Permit EPR/SP3409LC | F3: Operator: | G3: =+'Cover Page'!B37 -> Veolia ES (UK) Ltd
A5: Facility: | B5: =+'Cover Page'!B33:I33 -> Ellesmere Port Incinerator | F5: Form: | G5: Energy 1
A7: Reporting Period from: | D7: =+'Perf. Form 1'!D6:E6 -> 2025-01-01 | F7: to: | G7: =+'Perf. Form 1'!G6:H6 -> 2025-12-31
A9: Energy Source | D9: Energy Usage | F9: Unit | G9: Specific Usage (KWh/tonne incinerated
A10: Electricity Produced | D10: =+'Operational Data'!G27 -> 0 | F10: MWh | G10: =+'Operational Data'!H27 -> -
A11: Electricity Imported | D11: =+'Operational Data'!G29 -> 0 | F11: MWh | G11: =+'Operational Data'!H29 -> -
A12: Electricity Exported | D12: =+'Operational Data'!G28 -> 0 | F12: MWh | G12: =+'Operational Data'!H28 -> -
A13: Gas Oil | D13: 802.11 | F13: tonnes
A14: Steam/hot water exported | D14: =+'Operational Data'!G31 -> 0 | F14: GWh | G14: =+'Operational Data'!H31 -> -
A18: Operator’s comments :
A19: Gas oil usage split into 361.516 tonnes for support fuel and 440.60 tonnes for other onsite use i.e. yellow plant and fork lift.
A29: Signed: | B29: J Roberts | G29: Date: | H29: 2026-01-29

Sheet Permit Compliance
A1: =+'Cover Page'!$B$29 -> Annual Performance Report 2025 | E1: =+'Cover Page'!$B$33 -> Ellesmere Port Incinerator
A3: Summary of Permit Compliance
A5: Compliance with permit limits for continuously monitored pollutants
A7: The plant met its emission limits as shown in the table below:
A8: Substance | C8: Percentage time compliant during operationNote 1 | L8: Notes:
C9: Half-hourly limit | F9: Daily limit | L9: Note 1: Please report to 2 decimal places, i.e. xx.xx% Note 2: Please enter into this table any permit non-compliances that the EA has given a CCS score for. Please also enter any other non-compliances which you have notified to the EA (e.g. ELV exceedances) but which have not yet been assessed by the EA. There is no need to enter any notifications which were subsequently assessed by the EA not to be permit breaches. Note 3: Please enter information here (rather than just referencing the notifications that were sent to the EA) including where relevant the incineration line reference, pollutant and value of the measured result for any ELV exceedances.
A10: Particulates | C10: 0.997 | F10: 1
A11: Oxides of nitrogen | C11: 0.9967 | F11: 1
A12: Sulphur dioxide | C12: 0.9986 | F12: 1
A13: Carbon monoxide | C13: 99.60% 95% of 10-min averages | F13: 1
A14: Total organic carbon | C14: 0.9875 | F14: 1
A15: Hydrogen chloride | C15: 0.9999 | F15: 1
A16: Hydrogen fluoride | C16: 1 | F16: 1
A17: Mercury | C17: 0.9998 | F17: 1
A19: Summary of non-compliances under the permit Note 2
A20: Date | B20: Summary of non-compliance Note 3 | D20: Reason | G20: Measures taken to prevent reoccurrence | H20: CCS score if applicable*
H21: Impact | I21: Root cause
A27: *If the Environment Agency (EA) has given a Compliance Classification Scheme (CCS) score due to a permit non-compliance it should be entered here (CCS4 = No impact; CCS3 = Minor impact; CCS2 = Significant impact; CCS1 = Major impact). If the EA has not yet assessed a non-compliance which you have notified to them, these columns should be left blank. Enter N/A if no score was given for the root cause.
A29: Summary of any complaints received and actions to taken to resolve them.
A30: Date | B30: Summary of complaint [including Line/Reference] | E30: Reason (including whether substantiated by the operator or the EA) | H30: Measures taken to prevent reoccurrence

Sheet Improvements
A1: =+'Cover Page'!$B$29 -> Annual Performance Report 2025 | E1: =+'Cover Page'!$B$33 -> Ellesmere Port Incinerator
A3: Summary of Plant Improvements
A5: Summary of any efficiency improvements that have been completed within the year.
A6: LED lighting upgrade- ongoing project to replace all site lighting with LED. Cooling Tower efficiency project- project to look at the optimisation oof the site cooling towers including energy usage.
A16: Summary of any permit improvement conditions that have been completed within the year and the resulting environmental benefits.
A17: Responses submitted in response to IC1, IC3, IC4, IC5, IC7, IC10, IC11, IC12, IC13a, IC14, IC15a.
A27: Summary of any changes to the plant or operating techniques which required a variation to the permit and a summary of the resulting environmental impact.
A28: Permit variation submitted to include additional EWC codes to the list of wastes. Also to formalise the use of DPR gel as an optimisation reagent for the slag/ash which was previously under a minor operational change letter.
A38: Summary of any other improvements made to the plant or planned to be made and a summary of the resulting environmental benefits.

Sheet Public Liasion
A1: =+'Cover Page'!$B$29 -> Annual Performance Report 2025 | E1: =+'Cover Page'!$B$33 -> Ellesmere Port Incinerator
A3: Details of Public & Stakeholder Liaison
A5: Summary of events held during the reporting year.
A6: Date | C6: Description
A7: 2025-03-20 | C7: DESNZ/Veolia- Future of Hazardous Waste Roundtable
A9: 28/0/2025 | C9: Children Challenging Industry- Initial Site Tour
A11: 2025-09-22 | C11: Children Challenging Industry- Training Day
A13: 2025-09-24 | C13: DOMINO group meeting
A16: List of events planned for next year
A17: Date | C17: Description
A29: If you wish to be involved in the public liaison programme, please contact _________________

Sheet CO2 N2O
A1: =+'Cover Page'!$B$29 -> Annual Performance Report 2025 | C1: =+'Cover Page'!$B$33 -> Ellesmere Port Incinerator
A3: Carbon dioxide emissions and biogenic content of waste inputs | F3: Notes:
A5: Carbon dioxide emissions (all types of plant)
B6: Annual mass of carbon dioxide released | C6: tonnes | D6: 69568
B7: Annual mass of carbon dioxide released per tonne of waste burned | C7: t CO2 / t waste | D7: 1.06 | F7: Note 1: All permits require operators to continuously monitor CO2 to EN14181 and flow to BS EN 16911-2 (unless otherwise agreed in writing). Operators must therefore use the results from these instruments to calculate their annual CO2 emissions. Where an operator does not have a flow meter calibrated to BS EN 16911-2, the averaged flow measurement from that year's periodic monitoring can be used instead. If the plant does not have calibrated CO2 CEMS, a suitably justified emissions factor can be used.
B8: Annual mass of carbon dioxide released per MWh of energy exported | C8: t CO2 / MWh export | D8: 0
B9: Description of how annual carbon dioxide mass emission has been calculated. See Note 1 | C9: CEM's
A10: Nitrous oxide emissions (only plants which use ammonia or urea to abate NOx emissions)
B11: Annual mass emissions of nitrous oxide | C11: tonnes N2O | D11: 1.11
B12: Description of how annual nitrous oxide mass emission has been calculated See Note 2 | C12: CEM's | F12: Note 2: All permits require operators to continuously monitor N2O to EN14181 and flow to BS EN 16911-2, unless otherwise agreed in writing. Operators must therefore use the results from these instruments to calculate their annual N2O emissions. Where an operator does not have a flow meter calibrated to BS EN 16911-2, the averaged flow measurement from periodic monitoring can be used instead. If the plant does not have calibrated N2O CEMS, data from periodic monitoring or a suitably justified emissions factor can be used instead.
A13: Total annual carbon dioxide + nitrous oxide emissions. See Note 3. | C13: tonnes CO2e | D13: =D6+(D11*265) -> 69862.15 | F13: Note 3: Total annual carbon dioxide and nitrous oxide emissions reported as carbon dioxide equivalent where 1 tonne nitrous oxide is equivalent to 265 tonnes carbon dioxide.
A14: Biogenic CO2 emissions (See Note 4) | F14: Note 4: Only plants combusting residual municipal waste, refuse derived fuel or solid recovered fuel need complete this section.
B15: Percentage of total carbon dioxide emissions arising from biogenic waste | C15: % | D15: 0
B16: No. of measurements undertaken | C16: Number | D16: 0
B17: Description of how percentage biogenic carbon dioxide emissions have been measured or calculated. See Note 5 | C17: N/A | F17: Note 5: The results from C14 sampling should be used if this is carried out at the plant (either via an installed sampler or from spot samples). Otherwise, as an approximation (and in lieu of any more accurate metrics which may be developed in future), the measured or estimated biogenic fraction by net calorific value (see Note 6) can be assumed to be the same as the biogenic CO2 fraction of the total CO2 emissions from the plant.
A18: Biogenic fraction of waste feedstock (See Note 4)
B19: Yearly average biogenic percentage of the waste by net calorific value (NCV) | C19: % | D19: 0
B20: Description of how biogenic percentage (by NCV) has been calculated or estimated. See Note 6 | F20: Note 6: If C14 sampling is carried out at the plant, the methodology set out in the embedded document entitled "Renewable Energy Association Energy Content of Fuels - Description of Method" embedded below can be used to calculate the biogenic percentage by net calorific value. Otherwise, data from waste sampling or BIOMA software can be used; or if none of these are available, an estimated figure with justification or a figure assumed on the basis of up-to-date industry data can be used.
B21: Yearly average biogenic percentage of the waste by mass | C21: % | D21: 0
B22: If waste sampling undertaken, no. of samples used to ascertain average biogenic percentages above | C22: Number
B23: Description of how biogenic percentage (by mass) has been calculated or estimated. See Note 7 | F23: Note 7: Where available, data from waste sampling should be used; otherwise, an estimated figure with justification can be used, or a figure assumed on the basis of up-to-date industry data.
B25: Comments:

Sheet Residues
A1: =+'Cover Page'!$B$29 -> Annual Performance Report 2025 | E1: =+'Cover Page'!$B$33 -> Ellesmere Port Incinerator
A3: Summary of Residue Handling for the reporting year
A5: Plant operating mainly in ashing mode so all slag/ash residues classified as hazardous and disposed of at hazardous landfill. Filtercake is classified on a skip by skip basis and is sent to hazardous or non hazardous landfill depending on classification. 3144 tes of IBA produced in 2025. 5031 tes of hazardous filter cake. 466 tes of non hazardous filter cake. | K5: Include in here a summary of residue handling regimes and destinations
A28: Residue Quality Monitoring Requirements
A30: Summary of monitoring undertaken and compliance
A31: Filter cake- samples taken from every drop and analysed at onsite laboratory for classification. Monthly composite samples are sent to an external accredited laboratory as a QC check. Regular WAC analysis is carried out to confirm compliance with landfill acceptance requirements. Slag/ash- all residues currently being moved as hazardous to ensure compliance when moving between campaigns. Monthly composite samples sent to external laboratory for QC check. Regular WAC analysis is carried out to confirm compliance with landfill acceptance requirements.
A38: Commentary on any specific events
A39: Date & Event | C39: Description
A52: Residue Quality Monitoring Results
A53: Parameter (unit) | C53: Limit* | D53: Normal Operation
D54: Bottom ash | F54: APC Residues
A55: Loss on Ignition (average %) | C55: <5% | D55: 2.83
A56: Total Organic Carbon (average %) | C56: <3% | D56: 0.32
A57: No. of Assessments Undertaken | C57: --- | D57: 12
A58: No. of Hazardous Results | C58: --- | D58: 0
A59: * The permit will specify a limit of either 5% loss on ignition or 3% total organic carbon. If both are measured anyway, please enter the results here, even where the limit does not apply.
A61: Comments :
A62: Q4 composite sample used for this report.

Sheet Water
A1: =+'Cover Page'!$B$29 -> Annual Performance Report 2025 | E1: =+'Cover Page'!$B$33 -> Ellesmere Port Incinerator
A3: Emissions to Water
A5: Summary of monitoring undertaken and compliance
A6: daily samples taken from autosamplers for influent and effluent and analysed at in house laboratory. Monthly composite sent to externa laboratory as a QC sample.
A13: Commentary on any specific events
A14: Date & Event | C14: Description
A22: Emissions to Water / Sewer
A23: Parameter | D23: Monitoring Frequency | F23: Limit | G23: Target | H23: Max. | I23: Average
A24: Arsenic | D24: Daily | F24: 0.05 | G24: 0.95 | H24: 0.22 | I24: 0.01
A25: Cadmium | D25: Daily | F25: 0.03 | G25: 0.95 | H25: 0.013 | I25: 0.001
A26: Chromium | D26: Daily | F26: 0.1 | G26: 0.95 | H26: 0.139 | I26: 0.003
A27: Copper | D27: Daily | F27: 0.15 | G27: 0.95 | H27: 1.485 | I27: 0.077
A28: Nickel | D28: Daily | F28: 0.15 | G28: 0.95 | H28: 0.13 | I28: 0.021
A29: Lead | D29: Daily | F29: 0.06 | G29: 0.95 | H29: 0.735 | I29: 0.012
A30: Antimony | D30: Daily | F30: 0.9 | G30: 0.95 | H30: 2.052 | I30: 0.253
A31: Thallium | D31: Daily | F31: 0.03 | G31: 0.95 | H31: 0.032 | I31: 0.001
A32: Zinc | D32: Daily | F32: 0.5 | G32: 0.95 | H32: 2.835 | I32: 0.141

Sheet Air (periodic)
A1: =+'Cover Page'!$B$29 -> Annual Performance Report 2025 | E1: =+'Cover Page'!$B$33 -> Ellesmere Port Incinerator
A3: Emissions to Air (periodically monitored)
A5: Summary of monitoring undertaken, standards used and compliance | K5: Notes:
K6: Template may require adjustment for any bespoke monitoring requirements of permit - please also check that all default ELV values, reference periods and the stated oxygen reference value match those for your plant, and edit if necessary!
A9: Results of emissions to air that are periodically monitored - oxygen reference 11%
A10: Substance | C10: Ref. Period | D10: Emission Limit Value | F10: Average | K10: User to add additional tables as necessary, depending on whether quarterly or bi-annual reporting is required for the compliance year
F11: A1 | G11: A2 | H11: A3 | I11: A4 | J11: A5
A12: Hydrogen fluoride | C12: 1 hr | D12: 1 mg/m3 | F12: 0.69
A13: Cd and Tl and their compounds | C13: 0.5-8hrs | D13: 0.02 mg/m3 | F13: <0.0014
A14: Hg and its compounds | C14: 0.5-8hrs | D14: 0.02 mg/m3 | F14: 0.0084
A15: Sb, As, Pb, Cr, Co, Cu, Mn, Ni, V and their compounds | C15: 0.5-8hrs | D15: 0.3 mg/m3 | F15: 0.0759
A16: Dioxins & Furans (I-TEQ) | C16: 6-8hrs | D16: 0.06 ng/m3 | F16: 0.0022
A17: PCBs (WHO-TEQ Humans / Mammals) | C17: 6-8hrs | D17: None set ng/m3 | F17: 0.000682
A18: PCBs (WHO-TEQ Fish) | C18: 6-8hrs | D18: None set ng/m3 | F18: 3.6e-05
A19: PCBs (WHO-TEQ Birds) | C19: 6-8hrs | D19: None set ng/m3 | F19: 0.002056
A20: Dioxins & Furans (WHO-TEQ Humans / Mammals) | C20: 6-8hrs | D20: None set ng/m3 | F20: 0.0018
A21: Dioxins & Furans (WHO-TEQ Fish) | C21: 6-8hrs | D21: None set ng/m3 | F21: 0.0023
A22: Dioxins & Furans (WHO-TEQ Birds) | C22: 6-8hrs | D22: None set ng/m3 | F22: 0.0035
A23: Anthanthrene | C23: 6-8hrs | D23: None set µg/m3 | F23: <0.002
A24: Benzo(a)anthracene | C24: 6-8hrs | D24: None set µg/m3 | F24: <0.002
A25: Benzo(a)pyrene | C25: 6-8hrs | D25: None set µg/m3 | F25: <0.002
A26: Benzo(b)fluoranthene | C26: 6-8hrs | D26: None set µg/m3 | F26: <0.002
A27: Benzo(b)naptho(2,1-d) thiophene | C27: 6-8hrs | D27: None set µg/m3 | F27: <0.002
A28: Benzo(c)phenanthrene | C28: 6-8hrs | D28: None set µg/m3 | F28: <0.002
A29: Benzo(ghi)perylene | C29: 6-8hrs | D29: None set µg/m3 | F29: <0.002
A30: Benzo(k)fluoranthene | C30: 6-8hrs | D30: None set µg/m3 | F30: <0.002
A31: Cholanthrene | C31: 6-8hrs | D31: None set µg/m3 | F31: <0.002
A32: Chrysene | C32: 6-8hrs | D32: None set µg/m3 | F32: 0.004
A33: Cyclopenta(cd)pyrene | C33: 6-8hrs | D33: None set µg/m3 | F33: <0.002
A34: Dibenzo(ai)pyrene | C34: 6-8hrs | D34: None set µg/m3 | F34: <0.002
A35: Dibenzo(ah)anthracene | C35: 6-8hrs | D35: None set µg/m3 | F35: <0.002
A36: Fluoranthene | C36: 6-8hrs | D36: None set µg/m3 | F36: 0.042
A37: Indeno(123-cd) pyrene | C37: 6-8hrs | D37: None set µg/m3 | F37: <0.002
A38: Naphthalene | C38: 6-8hrs | D38: None set µg/m3 | F38: 16.1
A39: Comments :

Sheet Air (CEMS)
A1: =+'Cover Page'!$B$29 -> Annual Performance Report 2025 | I1: =+'Cover Page'!$B$33 -> Ellesmere Port Incinerator
A3: Emissions to Air (continuously monitored)
N4: Notes:
A5: Summary of monitoring undertaken, standards used and compliance | N5: Template may require adjustment for any bespoke monitoring requirements of permit
A6: 1/2 hourly mean is calculated as mean of max 1/2 hour averages so is a worst case figure. This will be updated in our calculation sheets moving forawrds. | N6: Please check that all default ELV values match those for your plant and edit if necessary!
N7: Report to 1 decimal place
A11: Results of emissions to air that are continuously monitored (maximum and average values for each line) - oxygen reference 11%
A12: Substance | B12: Reference Period | C12: Emission Limit Value | D12: A1 | F12: A2 | H12: A3 | J12: A4 | L12: A5
D13: Max. | E13: Avg. | F13: Max. | G13: Avg. | H13: Max. | I13: Avg. | J13: Max. | K13: Avg. | L13: Max. | M13: Avg.
A14: Oxides of nitrogen | B14: Daily mean | C14: 180 mg/m3 | D14: 133 | E14: 90
B15: ½ hourly mean | C15: 180 mg/m3 | D15: 349 | E15: 137
A16: Particulates | B16: Daily mean | C16: 5 mg/m3 | D16: 7.09 | E16: 1.03
B17: ½ hourly mean | C17: 5 mg/m3 | D17: 152.91 | E17: 3.46
A18: Total Organic Carbon | B18: Daily mean | C18: 10 mg/m3 | D18: 3.95 | E18: 0.7
B19: ½ hourly mean | C19: 10 mg/m3 | D19: 82.86 | E19: 11.14
A20: Hydrogen chloride | B20: Daily mean | C20: 8 mg/m3 | D20: 1.07 | E20: 0.22
B21: ½ hourly mean | C21: 8 mg/m3 | D21: 10.61 | E21: 0.7
A22: Sulphur dioxide | B22: Daily mean | C22: 40 mg/m3 | D22: 262 | E22: 4.18
B23: ½ hourly mean | C23: 40 mg/m3 | D23: 670.63 | E23: 11.94
A24: Carbon monoxide | B24: Daily mean | C24: 50 mg/m3 | D24: 21.37 | E24: 5.35
B25: ½ hourly mean * | C25: 100 mg/m3 *
B26: 95%ile 10-min avg * | C26: 150 mg/m3 * | D26: 433 | E26: 143.14
A27: Ammonia | B27: Daily mean | C27: 15 mg/m3 | D27: 5.06 | E27: 0.59
A28: * = delete as appropriate, depending on whether your plant has half-hourly or 10-min CO ELVs
A29: Comments :

Sheet HCl
A1: =+'Cover Page'!$B$29 -> Annual Performance Report 2025 | E1: =+'Cover Page'!$B$33 -> Ellesmere Port Incinerator
A3: Monitoring of Hydrogen Chloride emissions | D3: Whole Installation | G3: See Notes in Cell Q3 | J3: =+A3 -> Monitoring of Hydrogen Chloride emissions | N3: Per Combustion Line | Q3: Notes:
Q4: User to add logic to complete Whole installation, Table A5:G18. From the data in Per Combustion Line, Table J6:O79, subject to No. of lines installed
A5: =+'Cover Page'!C39 -> 2025 | B5: 1/2 Hourly Reference Periods | E5: Daily Reference Periods
A6: mg/Nm3 | B6: 1/2 hourly HCl ELV | C6: Monthly mean of half-hourly averages | D6: Highest half- hourly average | E6: Daily HCl ELV | F6: Monthly mean of daily averages | G6: Highest daily average | J6: =+A5 -> 2025 | K6: mg/Nm3 | L6: Monthly mean of half-hourly averages | M6: Highest half- hourly average | N6: Monthly mean of daily averages | O6: Highest daily average
A7: Jan | B7: 8 | C7: =L7 -> 0.24 | D7: =M7 -> 1.7 | E7: 8 | F7: =N7 -> 0.22 | G7: =O7 -> 0.38 | J7: A1 | K7: Jan | L7: 0.24 | M7: 1.7 | N7: 0.22 | O7: 0.38
A8: Feb | B8: 8 | C8: =L8 -> 0.25 | D8: =M8 -> 10.4 | E8: 8 | F8: =N8 -> 0.22 | G8: =O8 -> 0.46 | K8: Feb | L8: 0.25 | M8: 10.4 | N8: 0.22 | O8: 0.46
A9: Mar | B9: 8 | C9: 0.25 | D9: 2.3 | E9: 8 | F9: 0.22 | G9: 1.07 | K9: Mar | L9: 0.25 | M9: 2.3 | N9: 0.22 | O9: 1.07 | Q9: Whole Installation table A5:G18:
A10: Apr | B10: 8 | C10: 0.3 | D10: 2.7 | E10: 8 | F10: 0.19 | G10: 0.64 | K10: Apr | L10: 0.3 | M10: 2.7 | N10: 0.19 | O10: 0.64 | Q10: Mean: for 1/2 hourly and daily periods calculate mean of values across all operational combustion lines for the month
A11: May | B11: 8 | C11: 0.3 | D11: 2 | E11: 8 | F11: 0.24 | G11: 0.4 | K11: May | L11: 0.3 | M11: 2 | N11: 0.24 | O11: 0.4
A12: Jun | B12: 8 | C12: 0.2 | D12: 1.3 | E12: 8 | F12: 0.19 | G12: 0.34 | K12: Jun | L12: 0.2 | M12: 1.3 | N12: 0.19 | O12: 0.34
A13: Jul | B13: 8 | C13: 0.2 | D13: 1.1 | E13: 8 | F13: 0.18 | G13: 0.3 | K13: Jul | L13: 0.2 | M13: 1.1 | N13: 0.18 | O13: 0.3 | Q13: Maximum: for 1/2 hourly and daily periods use the highest value across all operational combustion lines for the month
A14: Aug | B14: 8 | C14: 0.3 | D14: 0.8 | E14: 8 | F14: 0.28 | G14: 1.21 | K14: Aug | L14: 0.3 | M14: 0.8 | N14: 0.28 | O14: 1.21
A15: Sep | B15: 8 | C15: 0.4 | D15: 1.7 | E15: 8 | F15: 0.17 | G15: 0.61 | K15: Sep | L15: 0.4 | M15: 1.7 | N15: 0.17 | O15: 0.61
A16: Oct | B16: 8 | C16: 0.3 | D16: 1.3 | E16: 8 | F16: 0.25 | G16: 0.48 | K16: Oct | L16: 0.3 | M16: 1.3 | N16: 0.25 | O16: 0.48
A17: Nov | B17: 8 | C17: 0.3 | D17: 1.4 | E17: 8 | F17: 0.24 | G17: 0.35 | K17: Nov | L17: 0.3 | M17: 1.4 | N17: 0.24 | O17: 0.35
A18: Dec | B18: 8 | C18: 0.3 | D18: 1.2 | E18: 8 | F18: 0.23 | G18: 0.46 | K18: Dec | L18: 0.3 | M18: 1.2 | N18: 0.23 | O18: 0.46
K19: Annual | L19: =AVERAGE(L7:L18) -> 0.2783333333 | M19: =MAX(M7:M18) -> 10.4 | N19: =AVERAGE(N7:N18) -> 0.2191666667 | O19: =MAX(O7:O18) -> 1.21
J21: =+A5 -> 2025 | K21: mg/Nm3 | L21: Monthly mean of half-hourly averages | M21: Highest half- hourly average | N21: Monthly mean of daily averages | O21: Highest daily average
J22: A2 | K22: Jan
K23: Feb
K24: Mar
K25: Apr
K26: May
K27: Jun
K28: Jul
K29: Aug
K30: Sep
K31: Oct
K32: Nov
K33: Dec
K34: Annual | L34: =AVERAGE(L22:L33) ->  | M34: =MAX(M22:M33) -> 0 | N34: =AVERAGE(N22:N33) ->  | O34: =MAX(O22:O33) -> 0
J36: =+A5 -> 2025 | K36: mg/Nm3 | L36: Monthly mean of half-hourly averages | M36: Highest half- hourly average | N36: Monthly mean of daily averages | O36: Highest daily average
J37: A3 | K37: Jan
K38: Feb
K39: Mar
K40: Apr
K41: May
K42: Jun
K43: Jul
K44: Aug
K45: Sep
K46: Oct
K47: Nov
A48: Comments : | K48: Dec
K49: Annual | L49: =AVERAGE(L37:L48) ->  | M49: =MAX(M37:M48) -> 0 | N49: =AVERAGE(N37:N48) ->  | O49: =MAX(O37:O48) -> 0
J51: =+A5 -> 2025 | K51: mg/Nm3 | L51: Monthly mean of half-hourly averages | M51: Highest half- hourly average | N51: Monthly mean of daily averages | O51: Highest daily average
J52: A4 | K52: Jan
K53: Feb
K54: Mar
K55: Apr
K56: May
K57: Jun
K58: Jul
K59: Aug
K60: Sep
K61: Oct
K62: Nov
K63: Dec
K64: Annual | L64: =AVERAGE(L52:L63) ->  | M64: =MAX(M52:M63) -> 0 | N64: =AVERAGE(N52:N63) ->  | O64: =MAX(O52:O63) -> 0
J66: =+A5 -> 2025 | K66: mg/Nm3 | L66: Monthly mean of half-hourly averages | M66: Highest half- hourly average | N66: Monthly mean of daily averages | O66: Highest daily average
J67: A5 | K67: Jan
K68: Feb
K69: Mar
K70: Apr
K71: May
K72: Jun
K73: Jul
K74: Aug
K75: Sep
K76: Oct
K77: Nov
K78: Dec
K79: Annual | L79: =AVERAGE(L67:L78) ->  | M79: =MAX(M67:M78) -> 0 | N79: =AVERAGE(N67:N78) ->  | O79: =MAX(O67:O78) -> 0

Sheet SO2
A1: =+'Cover Page'!$B$29 -> Annual Performance Report 2025 | E1: =+'Cover Page'!$B$33 -> Ellesmere Port Incinerator
A3: Monitoring of Sulphur dioxide emissions | D3: Whole Installation | G3: See Notes in Cell Q3 | J3: =+A3 -> Monitoring of Sulphur dioxide emissions | N3: Per Combustion Line | Q3: Notes:
Q4: User to add logic to complete Whole installation, Table A5:G18. From the data in Per Combustion Line, Table J6:O79, subject to No. of lines installed
A5: =+'Cover Page'!C39 -> 2025 | B5: 1/2 Hourly Reference Periods | E5: Daily Reference Periods
A6: mg/Nm3 | B6: 1/2 hourly SO2 ELV | C6: Monthly mean of half-hourly averages | D6: Highest half- hourly average | E6: Daily SO2 ELV | F6: Monthly mean of daily averages | G6: Highest daily average | J6: =+A5 -> 2025 | K6: mg/Nm3 | L6: Monthly mean of half-hourly averages | M6: Highest half- hourly average | N6: Monthly mean of daily averages | O6: Highest daily average
A7: Jan | B7: 40 | C7: =L7 -> 3.42 | D7: =M7 -> 6.2 | E7: 40 | F7: =N7 -> 3.01 | G7: =O7 -> 3.57 | J7: A1 | K7: Jan | L7: 3.42 | M7: 6.2 | N7: 3.01 | O7: 3.57
A8: Feb | B8: 40 | C8: =L8 -> 3.58 | D8: =M8 -> 250.2 | E8: 40 | F8: =N8 -> 3.24 | G8: =O8 -> 13.1 | K8: Feb | L8: 3.58 | M8: 250.2 | N8: 3.24 | O8: 13.1
A9: Mar | B9: 40 | C9: 3.19 | D9: 10.9 | E9: 40 | F9: 2.82 | G9: 3.25 | K9: Mar | L9: 3.19 | M9: 10.9 | N9: 2.82 | O9: 3.25 | Q9: Whole Installation table A5:G18:
A10: Apr | B10: 40 | C10: 2.9 | D10: 26.5 | E10: 40 | F10: 1.89 | G10: 3.91 | K10: Apr | L10: 2.9 | M10: 26.5 | N10: 1.89 | O10: 3.91 | Q10: Mean: for 1/2 hourly and daily periods calculate mean of values across all operational combustion lines for the month
A11: May | B11: 40 | C11: 2.9 | D11: 47.8 | E11: 40 | F11: 2.61 | G11: 4.94 | K11: May | L11: 2.9 | M11: 47.8 | N11: 2.61 | O11: 4.94
A12: Jun | B12: 40 | C12: 2.9 | D12: 55.6 | E12: 40 | F12: 2.48 | G12: 3.95 | K12: Jun | L12: 2.9 | M12: 55.6 | N12: 2.48 | O12: 3.95
A13: Jul | B13: 40 | C13: 2.9 | D13: 16.1 | E13: 40 | F13: 2.51 | G13: 3.51 | K13: Jul | L13: 2.9 | M13: 16.1 | N13: 2.51 | O13: 3.51 | Q13: Maximum: for 1/2 hourly and daily periods use the highest value across all operational combustion lines for the month
A14: Aug | B14: 40 | C14: 6 | D14: 97.8 | E14: 40 | F14: 5.6 | G14: 10.25 | K14: Aug | L14: 6 | M14: 97.8 | N14: 5.6 | O14: 10.25
A15: Sep | B15: 40 | C15: 9.6 | D15: 518.4 | E15: 40 | F15: 4.34 | G15: 22.21 | K15: Sep | L15: 9.6 | M15: 518.4 | N15: 4.34 | O15: 22.21
A16: Oct | B16: 40 | C16: 6.5 | D16: 78.5 | E16: 40 | F16: 4.77 | G16: 9.28 | K16: Oct | L16: 6.5 | M16: 78.5 | N16: 4.77 | O16: 9.28
A17: Nov | B17: 40 | C17: 5.1 | D17: 66.9 | E17: 40 | F17: 4.41 | G17: 6.38 | K17: Nov | L17: 5.1 | M17: 66.9 | N17: 4.41 | O17: 6.38
A18: Dec | B18: 40 | C18: 5.3 | D18: 70.9 | E18: 40 | F18: 3.89 | G18: 6.63 | K18: Dec | L18: 5.3 | M18: 70.9 | N18: 3.89 | O18: 6.63
K19: Annual | L19: =AVERAGE(L7:L18) -> 4.524166667 | M19: =MAX(M7:M18) -> 518.4 | N19: =AVERAGE(N7:N18) -> 3.464166667 | O19: =MAX(O7:O18) -> 22.21
J21: =+A5 -> 2025 | K21: mg/Nm3 | L21: Monthly mean of half-hourly averages | M21: Highest half- hourly average | N21: Monthly mean of daily averages | O21: Highest daily average
J22: A2 | K22: Jan
K23: Feb
K24: Mar
K25: Apr
K26: May
K27: Jun
K28: Jul
K29: Aug
K30: Sep
K31: Oct
K32: Nov
K33: Dec
K34: Annual | L34: =AVERAGE(L22:L33) ->  | M34: =MAX(M22:M33) -> 0 | N34: =AVERAGE(N22:N33) ->  | O34: =MAX(O22:O33) -> 0
J36: =+A5 -> 2025 | K36: mg/Nm3 | L36: Monthly mean of half-hourly averages | M36: Highest half- hourly average | N36: Monthly mean of daily averages | O36: Highest daily average
J37: A3 | K37: Jan
K38: Feb
K39: Mar
K40: Apr
K41: May
K42: Jun
K43: Jul
K44: Aug
K45: Sep
K46: Oct
K47: Nov
A48: Comments : | K48: Dec
K49: Annual | L49: =AVERAGE(L37:L48) ->  | M49: =MAX(M37:M48) -> 0 | N49: =AVERAGE(N37:N48) ->  | O49: =MAX(O37:O48) -> 0
J51: =+A5 -> 2025 | K51: mg/Nm3 | L51: Monthly mean of half-hourly averages | M51: Highest half- hourly average | N51: Monthly mean of daily averages | O51: Highest daily average
J52: A4 | K52: Jan
K53: Feb
K54: Mar
K55: Apr
K56: May
K57: Jun
K58: Jul
K59: Aug
K60: Sep
K61: Oct
K62: Nov
K63: Dec
K64: Annual | L64: =AVERAGE(L52:L63) ->  | M64: =MAX(M52:M63) -> 0 | N64: =AVERAGE(N52:N63) ->  | O64: =MAX(O52:O63) -> 0
J66: =+A5 -> 2025 | K66: mg/Nm3 | L66: Monthly mean of half-hourly averages | M66: Highest half- hourly average | N66: Monthly mean of daily averages | O66: Highest daily average
J67: A5 | K67: Jan
K68: Feb
K69: Mar
K70: Apr
K71: May
K72: Jun
K73: Jul
K74: Aug
K75: Sep
K76: Oct
K77: Nov
K78: Dec
K79: Annual | L79: =AVERAGE(L67:L78) ->  | M79: =MAX(M67:M78) -> 0 | N79: =AVERAGE(N67:N78) ->  | O79: =MAX(O67:O78) -> 0

Sheet NOx
A1: =+'Cover Page'!$B$29 -> Annual Performance Report 2025 | E1: =+'Cover Page'!$B$33 -> Ellesmere Port Incinerator
A3: Monitoring of Oxides of Nitrogen emissions | D3: Whole Installation | G3: See Notes in Cell Q3 | J3: =+A3 -> Monitoring of Oxides of Nitrogen emissions | N3: Per Combustion Line | Q3: Notes:
Q4: User to add logic to complete Whole installation, Table A5:G18. From the data in Per Combustion Line, Table J6:O79, subject to No. of lines installed
A5: =+'Cover Page'!C39 -> 2025 | B5: 1/2 Hourly Reference Periods | E5: Daily Reference Periods
A6: mg/Nm3 | B6: 1/2 hourly NOx ELV | C6: Monthly mean of half-hourly averages | D6: Highest half- hourly average | E6: Daily NOx ELV | F6: Monthly mean of daily averages | G6: Highest daily average | J6: =+A5 -> 2025 | K6: mg/Nm3 | L6: Monthly mean of half-hourly averages | M6: Highest half- hourly average | N6: Monthly mean of daily averages | O6: Highest daily average
A7: Jan | B7: 180 | C7: =L7 -> 108.56 | D7: =M7 -> 232.6 | E7: 180 | F7: =N7 -> 96 | G7: =O7 -> 113 | J7: A1 | K7: Jan | L7: 108.56 | M7: 232.6 | N7: 96 | O7: 113
A8: Feb | B8: 180 | C8: =L8 -> 110.44 | D8: =M8 -> 257.3 | E8: 180 | F8: =N8 -> 98 | G8: =O8 -> 119 | K8: Feb | L8: 110.44 | M8: 257.3 | N8: 98 | O8: 119
A9: Mar | B9: 180 | C9: 110.29 | D9: 205 | E9: 180 | F9: 95 | G9: 131 | K9: Mar | L9: 110.29 | M9: 205 | N9: 95 | O9: 131 | Q9: Whole Installation table A5:G18:
A10: Apr | B10: 180 | C10: 111.5 | D10: 209.3 | E10: 180 | F10: 69 | G10: 116 | K10: Apr | L10: 111.5 | M10: 209.3 | N10: 69 | O10: 116 | Q10: Mean: for 1/2 hourly and daily periods calculate mean of values across all operational combustion lines for the month
A11: May | B11: 180 | C11: 112.9 | D11: 178.7 | E11: 180 | F11: 100 | G11: 115 | K11: May | L11: 112.9 | M11: 178.7 | N11: 100 | O11: 115
A12: Jun | B12: 180 | C12: 120.2 | D12: 191.6 | E12: 180 | F12: 100 | G12: 124 | K12: Jun | L12: 120.2 | M12: 191.6 | N12: 100 | O12: 124
A13: Jul | B13: 180 | C13: 111.8 | D13: 288.9 | E13: 180 | F13: 99 | G13: 131 | K13: Jul | L13: 111.8 | M13: 288.9 | N13: 99 | O13: 131 | Q13: Maximum: for 1/2 hourly and daily periods use the highest value across all operational combustion lines for the month
A14: Aug | B14: 180 | C14: 109 | D14: 236.2 | E14: 180 | F14: 98 | G14: 108 | K14: Aug | L14: 109 | M14: 236.2 | N14: 98 | O14: 108
A15: Sep | B15: 180 | C15: 104.5 | D15: 184.3 | E15: 180 | F15: 45 | G15: 113 | K15: Sep | L15: 104.5 | M15: 184.3 | N15: 45 | O15: 113
A16: Oct | B16: 180 | C16: 120.5 | D16: 189.7 | E16: 180 | F16: 88 | G16: 124 | K16: Oct | L16: 120.5 | M16: 189.7 | N16: 88 | O16: 124
A17: Nov | B17: 180 | C17: 120.2 | D17: 313.6 | E17: 180 | F17: 103 | G17: 126 | K17: Nov | L17: 120.2 | M17: 313.6 | N17: 103 | O17: 126
A18: Dec | B18: 180 | C18: 126.1 | D18: 241.5 | E18: 180 | F18: 89 | G18: 133 | K18: Dec | L18: 126.1 | M18: 241.5 | N18: 89 | O18: 133
K19: Annual | L19: =AVERAGE(L7:L18) -> 113.8325 | M19: =MAX(M7:M18) -> 313.6 | N19: =AVERAGE(N7:N18) -> 90 | O19: =MAX(O7:O18) -> 133
J21: =+A5 -> 2025 | K21: mg/Nm3 | L21: Monthly mean of half-hourly averages | M21: Highest half- hourly average | N21: Monthly mean of daily averages | O21: Highest daily average
J22: A2 | K22: Jan
K23: Feb
K24: Mar
K25: Apr
K26: May
K27: Jun
K28: Jul
K29: Aug
K30: Sep
K31: Oct
K32: Nov
K33: Dec
K34: Annual | L34: =AVERAGE(L22:L33) ->  | M34: =MAX(M22:M33) -> 0 | N34: =AVERAGE(N22:N33) ->  | O34: =MAX(O22:O33) -> 0
J36: =+A5 -> 2025 | K36: mg/Nm3 | L36: Monthly mean of half-hourly averages | M36: Highest half- hourly average | N36: Monthly mean of daily averages | O36: Highest daily average
J37: A3 | K37: Jan
K38: Feb
K39: Mar
K40: Apr
K41: May
K42: Jun
K43: Jul
K44: Aug
K45: Sep
K46: Oct
K47: Nov
A48: Comments : | K48: Dec
K49: Annual | L49: =AVERAGE(L37:L48) ->  | M49: =MAX(M37:M48) -> 0 | N49: =AVERAGE(N37:N48) ->  | O49: =MAX(O37:O48) -> 0
J51: =+A5 -> 2025 | K51: mg/Nm3 | L51: Monthly mean of half-hourly averages | M51: Highest half- hourly average | N51: Monthly mean of daily averages | O51: Highest daily average
J52: A4 | K52: Jan
K53: Feb
K54: Mar
K55: Apr
K56: May
K57: Jun
K58: Jul
K59: Aug
K60: Sep
K61: Oct
K62: Nov
K63: Dec
K64: Annual | L64: =AVERAGE(L52:L63) ->  | M64: =MAX(M52:M63) -> 0 | N64: =AVERAGE(N52:N63) ->  | O64: =MAX(O52:O63) -> 0
J66: =+A5 -> 2025 | K66: mg/Nm3 | L66: Monthly mean of half-hourly averages | M66: Highest half- hourly average | N66: Monthly mean of daily averages | O66: Highest daily average
J67: A5 | K67: Jan
K68: Feb
K69: Mar
K70: Apr
K71: May
K72: Jun
K73: Jul
K74: Aug
K75: Sep
K76: Oct
K77: Nov
K78: Dec
K79: Annual | L79: =AVERAGE(L67:L78) ->  | M79: =MAX(M67:M78) -> 0 | N79: =AVERAGE(N67:N78) ->  | O79: =MAX(O67:O78) -> 0

Sheet TOC
A1: =+'Cover Page'!$B$29 -> Annual Performance Report 2025 | E1: =+'Cover Page'!$B$33 -> Ellesmere Port Incinerator
A3: Monitoring of Total organic carbon emissions | D3: Whole Installation | G3: See Notes in Cell Q3 | J3: =+A3 -> Monitoring of Total organic carbon emissions | N3: Per Combustion Line | Q3: Notes:
Q4: User to add logic to complete Whole installation, Table A5:G18. From the data in Per Combustion Line, Table J6:O79, subject to No. of lines installed
A5: =+'Cover Page'!C39 -> 2025 | B5: 1/2 Hourly Reference Periods | E5: Daily Reference Periods
A6: mg/Nm3 | B6: 1/2 hourly TOC ELV | C6: Monthly mean of half-hourly averages | D6: Highest half- hourly average | E6: Daily TOC ELV | F6: Monthly mean of daily averages | G6: Highest daily average | J6: =+A5 -> 2025 | K6: mg/Nm3 | L6: Monthly mean of half-hourly averages | M6: Highest half- hourly average | N6: Monthly mean of daily averages | O6: Highest daily average
A7: Jan | B7: 10 | C7: =L7 -> 0.71 | D7: =M7 -> 31.6 | E7: 10 | F7: =N7 -> 0.65 | G7: =O7 -> 1.82 | J7: A1 | K7: Jan | L7: 0.71 | M7: 31.6 | N7: 0.65 | O7: 1.82
A8: Feb | B8: 10 | C8: =L8 -> 0.4 | D8: =M8 -> 15.1 | E8: 10 | F8: =N8 -> 0.44 | G8: =O8 -> 1.05 | K8: Feb | L8: 0.4 | M8: 15.1 | N8: 0.44 | O8: 1.05
A9: Mar | B9: 10 | C9: 0.61 | D9: 27 | E9: 10 | F9: 0.57 | G9: 2.33 | K9: Mar | L9: 0.61 | M9: 27 | N9: 0.57 | O9: 2.33 | Q9: Whole Installation table A5:G18:
A10: Apr | B10: 10 | C10: 0.4 | D10: 33.5 | E10: 10 | F10: 0.48 | G10: 1.39 | K10: Apr | L10: 0.4 | M10: 33.5 | N10: 0.48 | O10: 1.39 | Q10: Mean: for 1/2 hourly and daily periods calculate mean of values across all operational combustion lines for the month
A11: May | B11: 10 | C11: 1.3 | D11: 45.5 | E11: 10 | F11: 1.12 | G11: 2.56 | K11: May | L11: 1.3 | M11: 45.5 | N11: 1.12 | O11: 2.56
A12: Jun | B12: 10 | C12: 1 | D12: 47.5 | E12: 10 | F12: 0.85 | G12: 2.72 | K12: Jun | L12: 1 | M12: 47.5 | N12: 0.85 | O12: 2.72
A13: Jul | B13: 10 | C13: 0.4 | D13: 65.1 | E13: 10 | F13: 0.96 | G13: 3.95 | K13: Jul | L13: 0.4 | M13: 65.1 | N13: 0.96 | O13: 3.95 | Q13: Maximum: for 1/2 hourly and daily periods use the highest value across all operational combustion lines for the month
A14: Aug | B14: 10 | C14: 1 | D14: 87.7 | E14: 10 | F14: 1.03 | G14: 8.49 | K14: Aug | L14: 1 | M14: 87.7 | N14: 1.03 | O14: 8.49
A15: Sep | B15: 10 | C15: 1.9 | D15: 44.8 | E15: 10 | F15: 0.68 | G15: 3.04 | K15: Sep | L15: 1.9 | M15: 44.8 | N15: 0.68 | O15: 3.04
A16: Oct | B16: 10 | C16: 0.6 | D16: 33.4 | E16: 10 | F16: 0.68 | G16: 2.74 | K16: Oct | L16: 0.6 | M16: 33.4 | N16: 0.68 | O16: 2.74
A17: Nov | B17: 10 | C17: 0.6 | D17: 43.1 | E17: 10 | F17: 0.55 | G17: 3.07 | K17: Nov | L17: 0.6 | M17: 43.1 | N17: 0.55 | O17: 3.07
A18: Dec | B18: 10 | C18: 0.5 | D18: 35.8 | E18: 10 | F18: 0.39 | G18: 1.51 | K18: Dec | L18: 0.5 | M18: 35.8 | N18: 0.39 | O18: 1.51
K19: Annual | L19: =AVERAGE(L7:L18) -> 0.785 | M19: =MAX(M7:M18) -> 87.7 | N19: =AVERAGE(N7:N18) -> 0.7 | O19: =MAX(O7:O18) -> 8.49
J21: =+A5 -> 2025 | K21: mg/Nm3 | L21: Monthly mean of half-hourly averages | M21: Highest half- hourly average | N21: Monthly mean of daily averages | O21: Highest daily average
J22: A2 | K22: Jan
K23: Feb
K24: Mar
K25: Apr
K26: May
K27: Jun
K28: Jul
K29: Aug
K30: Sep
K31: Oct
K32: Nov
K33: Dec
K34: Annual | L34: =AVERAGE(L22:L33) ->  | M34: =MAX(M22:M33) -> 0 | N34: =AVERAGE(N22:N33) ->  | O34: =MAX(O22:O33) -> 0
J36: =+A5 -> 2025 | K36: mg/Nm3 | L36: Monthly mean of half-hourly averages | M36: Highest half- hourly average | N36: Monthly mean of daily averages | O36: Highest daily average
J37: A3 | K37: Jan
K38: Feb
K39: Mar
K40: Apr
K41: May
K42: Jun
K43: Jul
K44: Aug
K45: Sep
K46: Oct
K47: Nov
A48: Comments : | K48: Dec
K49: Annual | L49: =AVERAGE(L37:L48) ->  | M49: =MAX(M37:M48) -> 0 | N49: =AVERAGE(N37:N48) ->  | O49: =MAX(O37:O48) -> 0
J51: =+A5 -> 2025 | K51: mg/Nm3 | L51: Monthly mean of half-hourly averages | M51: Highest half- hourly average | N51: Monthly mean of daily averages | O51: Highest daily average
J52: A4 | K52: Jan
K53: Feb
K54: Mar
K55: Apr
K56: May
K57: Jun
K58: Jul
K59: Aug
K60: Sep
K61: Oct
K62: Nov
K63: Dec
K64: Annual | L64: =AVERAGE(L52:L63) ->  | M64: =MAX(M52:M63) -> 0 | N64: =AVERAGE(N52:N63) ->  | O64: =MAX(O52:O63) -> 0
J66: =+A5 -> 2025 | K66: mg/Nm3 | L66: Monthly mean of half-hourly averages | M66: Highest half- hourly average | N66: Monthly mean of daily averages | O66: Highest daily average
J67: A5 | K67: Jan
K68: Feb
K69: Mar
K70: Apr
K71: May
K72: Jun
K73: Jul
K74: Aug
K75: Sep
K76: Oct
K77: Nov
K78: Dec
K79: Annual | L79: =AVERAGE(L67:L78) ->  | M79: =MAX(M67:M78) -> 0 | N79: =AVERAGE(N67:N78) ->  | O79: =MAX(O67:O78) -> 0

Sheet Particulates
A1: =+'Cover Page'!$B$29 -> Annual Performance Report 2025 | E1: =+'Cover Page'!$B$33 -> Ellesmere Port Incinerator
A3: Monitoring of Particulate matter emissions | D3: Whole Installation | G3: See Notes in Cell Q3 | J3: =+A3 -> Monitoring of Particulate matter emissions | N3: Per Combustion Line | Q3: Notes:
A5: =+'Cover Page'!C39 -> 2025 | B5: 1/2 Hourly Reference Periods | E5: Daily Reference Periods | Q5: User to add logic to complete Whole installation, Table A5:G18. From the data in Per Combustion Line, Table J6:O79, subject to No. of lines installed
A6: mg/Nm3 | B6: 1/2 hourly PM ELV | C6: Monthly mean of half-hourly averages | D6: Highest half- hourly average | E6: Daily PM ELV | F6: Monthly mean of daily averages | G6: Highest daily average | J6: =+A5 -> 2025 | K6: mg/Nm3 | L6: Monthly mean of half-hourly averages | M6: Highest half- hourly average | N6: Monthly mean of daily averages | O6: Highest daily average
A7: Jan | B7: 5 | C7: =L7 -> 0.76 | D7: =M7 -> 34.2 | E7: 5 | F7: =N7 -> 0.5 | G7: =O7 -> 7.09 | J7: A1 | K7: Jan | L7: 0.76 | M7: 34.2 | N7: 0.5 | O7: 7.09
A8: Feb | B8: 5 | C8: =L8 -> 0.33 | D8: =M8 -> 1.6 | E8: 5 | F8: =N8 -> 0.29 | G8: =O8 -> 0.48 | K8: Feb | L8: 0.33 | M8: 1.6 | N8: 0.29 | O8: 0.48
A9: Mar | B9: 5 | C9: 0.36 | D9: 3.7 | E9: 5 | F9: 0.32 | G9: 0.58 | K9: Mar | L9: 0.36 | M9: 3.7 | N9: 0.32 | O9: 0.58
A10: Apr | B10: 5 | C10: 0.4 | D10: 1.5 | E10: 5 | F10: 0.22 | G10: 0.38 | K10: Apr | L10: 0.4 | M10: 1.5 | N10: 0.22 | O10: 0.38 | Q10: Whole Installation table A5:G18:
A11: May | B11: 5 | C11: 0.4 | D11: 1.2 | E11: 5 | F11: 0.39 | G11: 0.62 | K11: May | L11: 0.4 | M11: 1.2 | N11: 0.39 | O11: 0.62 | Q11: Mean: for 1/2 hourly and daily periods calculate mean of values across all operational combustion lines for the month
A12: Jun | B12: 5 | C12: 0.5 | D12: 2.7 | E12: 5 | F12: 0.44 | G12: 1.26 | K12: Jun | L12: 0.5 | M12: 2.7 | N12: 0.44 | O12: 1.26
A13: Jul | B13: 5 | C13: 0.7 | D13: 4.7 | E13: 5 | F13: 0.65 | G13: 2 | K13: Jul | L13: 0.7 | M13: 4.7 | N13: 0.65 | O13: 2
A14: Aug | B14: 5 | C14: 1.7 | D14: 16.1 | E14: 5 | F14: 1.61 | G14: 3.27 | K14: Aug | L14: 1.7 | M14: 16.1 | N14: 1.61 | O14: 3.27 | Q14: Maximum: for 1/2 hourly and daily periods use the highest value across all operational combustion lines for the month
A15: Sep | B15: 5 | C15: 1.8 | D15: 4.7 | E15: 5 | F15: 0.77 | G15: 2.1 | K15: Sep | L15: 1.8 | M15: 4.7 | N15: 0.77 | O15: 2.1
A16: Oct | B16: 5 | C16: 1.3 | D16: 47.7 | E16: 5 | F16: 1 | G16: 4.04 | K16: Oct | L16: 1.3 | M16: 47.7 | N16: 1 | O16: 4.04
A17: Nov | B17: 5 | C17: 2.2 | D17: 13.4 | E17: 5 | F17: 1.84 | G17: 3.41 | K17: Nov | L17: 2.2 | M17: 13.4 | N17: 1.84 | O17: 3.41
A18: Dec | B18: 5 | C18: 1.3 | D18: 2.8 | E18: 5 | F18: 1.03 | G18: 2.11 | K18: Dec | L18: 1.3 | M18: 2.8 | N18: 1.03 | O18: 2.11
K19: Annual | L19: =AVERAGE(L7:L18) -> 0.9791666667 | M19: =MAX(M7:M18) -> 47.7 | N19: =AVERAGE(N7:N18) -> 0.755 | O19: =MAX(O7:O18) -> 7.09
J21: =+A5 -> 2025 | K21: mg/Nm3 | L21: Monthly mean of half-hourly averages | M21: Highest half- hourly average | N21: Monthly mean of daily averages | O21: Highest daily average
J22: A2 | K22: Jan
K23: Feb
K24: Mar
K25: Apr
K26: May
K27: Jun
K28: Jul
K29: Aug
K30: Sep
K31: Oct
K32: Nov
K33: Dec
K34: Annual | L34: =AVERAGE(L22:L33) ->  | M34: =MAX(M22:M33) -> 0 | N34: =AVERAGE(N22:N33) ->  | O34: =MAX(O22:O33) -> 0
J36: =+A5 -> 2025 | K36: mg/Nm3 | L36: Monthly mean of half-hourly averages | M36: Highest half- hourly average | N36: Monthly mean of daily averages | O36: Highest daily average
J37: A3 | K37: Jan
K38: Feb
K39: Mar
K40: Apr
K41: May
K42: Jun
K43: Jul
K44: Aug
K45: Sep
K46: Oct
K47: Nov
A48: Comments : | K48: Dec
A49: January highest daily average includes 7 hours of abnormal operation. | K49: Annual | L49: =AVERAGE(L37:L48) ->  | M49: =MAX(M37:M48) -> 0 | N49: =AVERAGE(N37:N48) ->  | O49: =MAX(O37:O48) -> 0
J51: =+A5 -> 2025 | K51: mg/Nm3 | L51: Monthly mean of half-hourly averages | M51: Highest half- hourly average | N51: Monthly mean of daily averages | O51: Highest daily average
J52: A4 | K52: Jan
K53: Feb
K54: Mar
K55: Apr
K56: May
K57: Jun
K58: Jul
K59: Aug
K60: Sep
K61: Oct
K62: Nov
K63: Dec
K64: Annual | L64: =AVERAGE(L52:L63) ->  | M64: =MAX(M52:M63) -> 0 | N64: =AVERAGE(N52:N63) ->  | O64: =MAX(O52:O63) -> 0
J66: =+A5 -> 2025 | K66: mg/Nm3 | L66: Monthly mean of half-hourly averages | M66: Highest half- hourly average | N66: Monthly mean of daily averages | O66: Highest daily average
J67: A5 | K67: Jan
K68: Feb
K69: Mar
K70: Apr
K71: May
K72: Jun
K73: Jul
K74: Aug
K75: Sep
K76: Oct
K77: Nov
K78: Dec
K79: Annual | L79: =AVERAGE(L67:L78) ->  | M79: =MAX(M67:M78) -> 0 | N79: =AVERAGE(N67:N78) ->  | O79: =MAX(O67:O78) -> 0

Sheet CO 0.5 hourly
A1: =+'Cover Page'!$B$29 -> Annual Performance Report 2025 | E1: =+'Cover Page'!$B$33 -> Ellesmere Port Incinerator
A3: Monitoring of Carbon Monoxide (half hourly) | D3: Whole Installation | G3: See Notes in Cell Q3 | J3: =+A3 -> Monitoring of Carbon Monoxide (half hourly) | N3: Per Combustion Line | Q3: Notes:
A5: Please complete this tab for your plant if you have 1/2 hourly CO ELVs; otherwise, leave it blank and complete the CO 95% 10 min tab
Q7: User to add logic to complete Whole installation, Table A5:G18. From the data in Per Combustion Line, Table J6:O79, subject to No. of lines installed
A8: =+'Cover Page'!C39 -> 2025 | B8: 1/2 Hourly Reference Periods | E8: Daily Reference Periods
A9: mg/Nm3 | B9: 1/2 hourly CO ELV | C9: Monthly mean of half-hourly averages | D9: Highest half- hourly average | E9: Daily CO ELV | F9: Monthly mean of daily averages | G9: Highest daily average | J9: =+A8 -> 2025 | K9: mg/Nm3 | L9: Monthly mean of half-hourly averages | M9: Highest half- hourly average | N9: Monthly mean of daily averages | O9: Highest daily average
A10: Jan | B10: 100 | E10: 50 | J10: A1 | K10: Jan
A11: Feb | B11: =+B10 -> 100 | E11: =+E10 -> 50 | K11: Feb
A12: Mar | B12: =+B11 -> 100 | E12: =+E11 -> 50 | K12: Mar | Q12: Whole Installation table A5:G18:
A13: Apr | B13: 100 | E13: 50 | K13: Apr | Q13: Mean: for 1/2 hourly and daily periods calculate mean of values across all operational combustion lines for the month
A14: May | B14: 100 | E14: 50 | K14: May
A15: Jun | B15: 100 | E15: 50 | K15: Jun
A16: Jul | B16: 100 | E16: 50 | K16: Jul | Q16: Maximum: for 1/2 hourly and daily periods use the highest value across all operational combustion lines for the month
A17: Aug | B17: 100 | E17: 50 | K17: Aug
A18: Sep | B18: 100 | E18: 50 | K18: Sep
A19: Oct | B19: 100 | E19: 50 | K19: Oct
A20: Nov | B20: 100 | E20: 50 | K20: Nov
A21: Dec | B21: 100 | E21: 50 | K21: Dec
K22: Annual | L22: =AVERAGE(L10:L21) ->  | M22: =MAX(M10:M21) -> 0 | N22: =AVERAGE(N10:N21) ->  | O22: =MAX(O10:O21) -> 0
J24: =+A8 -> 2025 | K24: mg/Nm3 | L24: Monthly mean of half-hourly averages | M24: Highest half- hourly average | N24: Monthly mean of daily averages | O24: Highest daily average
J25: A2 | K25: Jan
K26: Feb
K27: Mar
K28: Apr
K29: May
K30: Jun
K31: Jul
K32: Aug
K33: Sep
K34: Oct
K35: Nov
K36: Dec
K37: Annual | L37: =AVERAGE(L25:L36) ->  | M37: =MAX(M25:M36) -> 0 | N37: =AVERAGE(N25:N36) ->  | O37: =MAX(O25:O36) -> 0
J39: =+A8 -> 2025 | K39: mg/Nm3 | L39: Monthly mean of half-hourly averages | M39: Highest half- hourly average | N39: Monthly mean of daily averages | O39: Highest daily average
J40: A3 | K40: Jan
K41: Feb
K42: Mar
K43: Apr
K44: May
K45: Jun
K46: Jul
K47: Aug
K48: Sep
K49: Oct
K50: Nov
A51: Comments : | K51: Dec
K52: Annual | L52: =AVERAGE(L40:L51) ->  | M52: =MAX(M40:M51) -> 0 | N52: =AVERAGE(N40:N51) ->  | O52: =MAX(O40:O51) -> 0
J54: =+A8 -> 2025 | K54: mg/Nm3 | L54: Monthly mean of half-hourly averages | M54: Highest half- hourly average | N54: Monthly mean of daily averages | O54: Highest daily average
J55: A4 | K55: Jan
K56: Feb
K57: Mar
K58: Apr
K59: May
K60: Jun
K61: Jul
K62: Aug
K63: Sep
K64: Oct
K65: Nov
K66: Dec
K67: Annual | L67: =AVERAGE(L55:L66) ->  | M67: =MAX(M55:M66) -> 0 | N67: =AVERAGE(N55:N66) ->  | O67: =MAX(O55:O66) -> 0
J69: =+A8 -> 2025 | K69: mg/Nm3 | L69: Monthly mean of half-hourly averages | M69: Highest half- hourly average | N69: Monthly mean of daily averages | O69: Highest daily average
J70: A5 | K70: Jan
K71: Feb
K72: Mar
K73: Apr
K74: May
K75: Jun
K76: Jul
K77: Aug
K78: Sep
K79: Oct
K80: Nov
K81: Dec
K82: Annual | L82: =AVERAGE(L70:L81) ->  | M82: =MAX(M70:M81) -> 0 | N82: =AVERAGE(N70:N81) ->  | O82: =MAX(O70:O81) -> 0

Sheet CO 95% 10 min
A1: =+'Cover Page'!$B$29 -> Annual Performance Report 2025 | E1: =+'Cover Page'!$B$33 -> Ellesmere Port Incinerator
A3: Monitoring of Carbon Monoxide (10-minute avg) | E3: Whole Installation | H3: See Notes in Cell S3 | J3: =+A3 -> Monitoring of Carbon Monoxide (10-minute avg) | O3: Per Combustion Line | Q3: Notes: | S3: Notes:
A5: Please complete this tab for your plant if you have 10-minute average CO ELVs; otherwise, leave it blank and complete the CO 0.5 hourly tab
S7: User to add logic to complete Whole installation, Table A5:H18. From the data in Per Combustion Line, Table K6:Q79, subject to No. of lines installed
A8: =+'Cover Page'!C39 -> 2025 | B8: 10-minute Reference Periods | F8: Daily Reference Periods
A9: mg/Nm3 | B9: 95%ile 10-min avg CO ELV | C9: Highest daily 95%ile 10-min average | D9: Monthly mean of 10-min averages | E9: Highest 10-min average | F9: Daily CO ELV | G9: Monthly mean of daily averages | H9: Highest daily average | K9: =+A8 -> 2025 | L9: mg/Nm3 | M9: Highest daily 95%ile 10-min average | N9: Monthly mean of 10-min averages | O9: Highest 10-min average | P9: Monthly mean of daily averages | Q9: Highest daily average
A10: Jan | B10: 150 | C10: =M10 -> 162.4 | D10: =N10 -> 8.8 | E10: =O10 -> 320.9 | F10: 50 | G10: =P10 -> 8.44 | H10: =Q10 -> 19.8 | K10: A1 | L10: Jan | M10: 162.4 | N10: 8.8 | O10: 320.9 | P10: 8.44 | Q10: 19.8
A11: Feb | B11: =+B10 -> 150 | C11: =M11 -> 148.8 | D11: =N11 -> 7.7 | E11: =O11 -> 348.4 | F11: =+F10 -> 50 | G11: =P11 -> 7.5 | H11: =Q11 -> 21 | L11: Feb | M11: 148.8 | N11: 7.7 | O11: 348.4 | P11: 7.5 | Q11: 21
A12: Mar | B12: =+B11 -> 150 | C12: 115 | D12: 8.6 | E12: 386.7 | F12: =+F11 -> 50 | G12: 8.67 | H12: 23.5 | L12: Mar | M12: 115 | N12: 8.6 | O12: 386.7 | P12: 8.67 | Q12: 23.5 | S12: Whole Installation table A5:H18:
A13: Apr | B13: 150 | C13: 128 | D13: 10.5 | E13: 339.2 | F13: 50 | G13: 11.23 | H13: 30.7 | L13: Apr | M13: 128 | N13: 10.5 | O13: 339.2 | P13: 11.23 | Q13: 30.7 | S13: Mean: for 10-min and daily periods use average of all operational combustion lines.
A14: May | B14: 150 | C14: 79.7 | D14: 4.4 | E14: 262.8 | F14: 50 | G14: 4.44 | H14: 13.4 | L14: May | M14: 79.7 | N14: 4.4 | O14: 262.8 | P14: 4.44 | Q14: 13.4
A15: Jun | B15: 150 | C15: 96.5 | D15: 5.4 | E15: 303.9 | F15: 50 | G15: 5.54 | H15: 20.3 | L15: Jun | M15: 96.5 | N15: 5.4 | O15: 303.9 | P15: 5.54 | Q15: 20.3
A16: Jul | B16: 150 | C16: 77.8 | D16: 4.2 | E16: 264.4 | F16: 50 | G16: 4.33 | H16: 13.8 | L16: Jul | M16: 77.8 | N16: 4.2 | O16: 264.4 | P16: 4.33 | Q16: 13.8 | S16: Maximum: for 10-min and daily periods use the highest of all operational combustion lines in any month.
A17: Aug | B17: 150 | C17: 125.9 | D17: 4.3 | E17: 353.8 | F17: 50 | G17: 4.25 | H17: 18.8 | L17: Aug | M17: 125.9 | N17: 4.3 | O17: 353.8 | P17: 4.25 | Q17: 18.8
A18: Sep | B18: 150 | C18: 98.2 | D18: 7.4 | E18: 249.6 | F18: 50 | G18: 9.18 | H18: 47.3 | L18: Sep | M18: 98.2 | N18: 7.4 | O18: 249.6 | P18: 9.18 | Q18: 47.3
A19: Oct | B19: 150 | C19: 137.8 | D19: 6.2 | E19: 234.5 | F19: 50 | G19: 6 | H19: 19.7 | L19: Oct | M19: 137.8 | N19: 6.2 | O19: 234.5 | P19: 6 | Q19: 19.7
A20: Nov | B20: 150 | C20: 71.5 | D20: 2.5 | E20: 270 | F20: 50 | G20: 2.7 | H20: 10.9 | L20: Nov | M20: 71.5 | N20: 2.5 | O20: 270 | P20: 2.7 | Q20: 10.9
A21: Dec | B21: 150 | C21: 76.8 | D21: 2 | E21: 305 | F21: 50 | G21: 2.22 | H21: 13 | L21: Dec | M21: 76.8 | N21: 2 | O21: 305 | P21: 2.22 | Q21: 13
L22: Annual | M22: =AVERAGE(M10:M21) -> 109.8666667 | N22: =AVERAGE(N10:N21) -> 6 | O22: =MAX(O10:O21) -> 386.7 | P22: =AVERAGE(P10:P21) -> 6.208333333 | Q22: =MAX(Q10:Q21) -> 47.3
K24: =+A8 -> 2025 | L24: mg/Nm3 | M24: Highest daily 95%ile 10-min average | N24: Monthly mean of 10-min averages | O24: Highest 10-min average | P24: Monthly mean of daily averages | Q24: Highest daily average
K25: A2 | L25: Jan
L26: Feb
L27: Mar
L28: Apr
L29: May
L30: Jun
L31: Jul
L32: Aug
L33: Sep
L34: Oct
L35: Nov
L36: Dec
L37: Annual | M37: =AVERAGE(M25:M36) ->  | O37: =MAX(O25:O36) -> 0 | P37: =AVERAGE(P25:P36) ->  | Q37: =MAX(Q25:Q36) -> 0
K39: =+A8 -> 2025 | L39: mg/Nm3 | M39: Highest daily 95%ile 10-min average | N39: Monthly mean of 10-min averages | O39: Highest 10-min average | P39: Monthly mean of daily averages | Q39: Highest daily average
K40: A3 | L40: Jan
L41: Feb
L42: Mar
L43: Apr
L44: May
L45: Jun
L46: Jul
L47: Aug
L48: Sep
L49: Oct
L50: Nov
A51: Comments : | L51: Dec
A52: Environment Agency explanatory note: The 10-minute average ELV is based on the “95th percentile”. In this case this means that 95% of the 10 minute averages in the relevant 24-hour period (i.e. 137) must be below 150 mg/Nm3, and 5% (i.e. 7) are allowed to be any value above 150 mg/Nm3. Whilst we expect operators to minimise CO emissions at all times, it is perfectly acceptable for the value of the maximum 10-minute average to be above 150 mg/Nm3, provided the 95th percentile ELV has been met for that period. | L52: Annual | M52: =AVERAGE(M40:M51) ->  | O52: =MAX(O40:O51) -> 0 | P52: =AVERAGE(P40:P51) ->  | Q52: =MAX(Q40:Q51) -> 0
K54: =+A8 -> 2025 | L54: mg/Nm3 | M54: Highest daily 95%ile 10-min average | N54: Monthly mean of 10-min averages | O54: Highest 10-min average | P54: Monthly mean of daily averages | Q54: Highest daily average
K55: A4 | L55: Jan
L56: Feb
L57: Mar
L58: Apr
L59: May
L60: Jun
L61: Jul
L62: Aug
L63: Sep
L64: Oct
L65: Nov
L66: Dec
L67: Annual | M67: =AVERAGE(M55:M66) ->  | O67: =MAX(O55:O66) -> 0 | P67: =AVERAGE(P55:P66) ->  | Q67: =MAX(Q55:Q66) -> 0
K69: =+A8 -> 2025 | L69: mg/Nm3 | M69: 95%ile 10-min avg maximum | N69: Monthly CO 10-min avg mean | O69: 10-min avg maximum | P69: Monthly daily mean | Q69: Monthly daily maximum
K70: A5 | L70: Jan
L71: Feb
L72: Mar
L73: Apr
L74: May
L75: Jun
L76: Jul
L77: Aug
L78: Sep
L79: Oct
L80: Nov
L81: Dec
L82: Annual | M82: =AVERAGE(M70:M81) ->  | O82: =MAX(O70:O81) -> 0 | P82: =AVERAGE(P70:P81) ->  | Q82: =MAX(Q70:Q81) -> 0

Sheet NH3
A1: =+'Cover Page'!$B$29 -> Annual Performance Report 2025 | E1: =+'Cover Page'!$B$33 -> Ellesmere Port Incinerator
A3: Monitoring of Ammnonia emissions | D3: Whole Installation | G3: See Notes in Cell Q3 | J3: =+A3 -> Monitoring of Ammnonia emissions | N3: Per Combustion Line | Q3: Notes:
Q4: User to add logic to complete Whole installation, Table A5:G18. From the data in Per Combustion Line, Table J6:O79, subject to No. of lines installed
A5: =+'Cover Page'!C39 -> 2025 | B5: 1/2 Hourly Reference Periods | E5: Daily Reference Periods
A6: mg/Nm3 | B6: 1/2 hourly NH3 ELV | C6: Monthly mean of half-hourly averages | D6: Highest half- hourly average | E6: Daily NH3 ELV | F6: Monthly mean of daily averages | G6: Highest daily average | J6: =+A5 -> 2025 | K6: mg/Nm3 | L6: Monthly mean of half-hourly averages | M6: Highest half- hourly average | N6: Monthly mean of daily averages | O6: Highest daily average
A7: Jan | B7: None | C7: =L7 -> 2.26 | D7: =M7 -> 9.5 | E7: 10 | F7: =N7 -> 2 | G7: =O7 -> 5.06 | J7: A1 | K7: Jan | L7: 2.26 | M7: 9.5 | N7: 2 | O7: 5.06
A8: Feb | B8: =+B7 -> None | C8: =L8 -> 0.46 | D8: =M8 -> 4.4 | E8: 10 | F8: =N8 -> 0.42 | G8: =O8 -> 1.83 | K8: Feb | L8: 0.46 | M8: 4.4 | N8: 0.42 | O8: 1.83
A9: Mar | B9: =+B8 -> None | C9: 0.87 | D9: 5.5 | E9: 10 | F9: 0.73 | G9: 2.46 | K9: Mar | L9: 0.87 | M9: 5.5 | N9: 0.73 | O9: 2.46 | Q9: Whole Installation table A5:G18:
A10: Apr | B10: None | C10: 1.3 | D10: 5.2 | E10: 10 | F10: 0.82 | G10: 2.62 | K10: Apr | L10: 1.3 | M10: 5.2 | N10: 0.82 | O10: 2.62 | Q10: Mean: for 1/2 hourly and daily periods calculate mean of values across all operational combustion lines for the month
A11: May | B11: None | C11: 0.2 | D11: 1.2 | E11: 10 | F11: 0.12 | G11: 0.38 | K11: May | L11: 0.2 | M11: 1.2 | N11: 0.12 | O11: 0.38
A12: Jun | B12: None | C12: 0.2 | D12: 2 | E12: 10 | F12: 0.19 | G12: 0.98 | K12: Jun | L12: 0.2 | M12: 2 | N12: 0.19 | O12: 0.98
A13: Jul | B13: None | C13: 1 | D13: 8.1 | E13: 10 | F13: 0.81 | G13: 3.62 | K13: Jul | L13: 1 | M13: 8.1 | N13: 0.81 | O13: 3.62 | Q13: Maximum: for 1/2 hourly and daily periods use the highest value across all operational combustion lines for the month
A14: Aug | B14: None | C14: 0.6 | D14: 2.6 | E14: 10 | F14: 0.58 | G14: 1.64 | K14: Aug | L14: 0.6 | M14: 2.6 | N14: 0.58 | O14: 1.64
A15: Sep | B15: None | C15: 1.8 | D15: 5 | E15: 10 | F15: 0.79 | G15: 2.44 | K15: Sep | L15: 1.8 | M15: 5 | N15: 0.79 | O15: 2.44
A16: Oct | B16: None | C16: 0.5 | D16: 2.5 | E16: 10 | F16: 0.4 | G16: 1.28 | K16: Oct | L16: 0.5 | M16: 2.5 | N16: 0.4 | O16: 1.28
A17: Nov | B17: None | C17: 0.1 | D17: 1 | E17: 10 | F17: 0.06 | G17: 0.29 | K17: Nov | L17: 0.1 | M17: 1 | N17: 0.06 | O17: 0.29
A18: Dec | B18: None | C18: 0.2 | D18: 2.5 | E18: 10 | F18: 0.13 | G18: 0.46 | K18: Dec | L18: 0.2 | M18: 2.5 | N18: 0.13 | O18: 0.46
K19: Annual | L19: =AVERAGE(L7:L18) -> 0.7908333333 | M19: =MAX(M7:M18) -> 9.5 | N19: =AVERAGE(N7:N18) -> 0.5875 | O19: =MAX(O7:O18) -> 5.06
J21: =+A5 -> 2025 | K21: mg/Nm3 | L21: Monthly mean of half-hourly averages | M21: Highest half- hourly average | N21: Monthly mean of daily averages | O21: Highest daily average
J22: A2 | K22: Jan
K23: Feb
K24: Mar
K25: Apr
K26: May
K27: Jun
K28: Jul
K29: Aug
K30: Sep
K31: Oct
K32: Nov
K33: Dec
K34: Annual | L34: =AVERAGE(L22:L33) ->  | M34: =MAX(M22:M33) -> 0 | N34: =AVERAGE(N22:N33) ->  | O34: =MAX(O22:O33) -> 0
J36: =+A5 -> 2025 | K36: mg/Nm3 | L36: Monthly mean of half-hourly averages | M36: Highest half- hourly average | N36: Monthly mean of daily averages | O36: Highest daily average
J37: A3 | K37: Jan
K38: Feb
K39: Mar
K40: Apr
K41: May
K42: Jun
K43: Jul
K44: Aug
K45: Sep
K46: Oct
K47: Nov
A48: Comments : | K48: Dec
A49: An indicated ELV value of zero in the table above means that no ammonia limit is/was set in the permit. | K49: Annual | L49: =AVERAGE(L37:L48) ->  | M49: =MAX(M37:M48) -> 0 | N49: =AVERAGE(N37:N48) ->  | O49: =MAX(O37:O48) -> 0
J51: =+A5 -> 2025 | K51: mg/Nm3 | L51: Monthly mean of half-hourly averages | M51: Highest half- hourly average | N51: Monthly mean of daily averages | O51: Highest daily average
J52: A4 | K52: Jan
K53: Feb
K54: Mar
K55: Apr
K56: May
K57: Jun
K58: Jul
K59: Aug
K60: Sep
K61: Oct
K62: Nov
K63: Dec
K64: Annual | L64: =AVERAGE(L52:L63) ->  | M64: =MAX(M52:M63) -> 0 | N64: =AVERAGE(N52:N63) ->  | O64: =MAX(O52:O63) -> 0
J66: =+A5 -> 2025 | K66: mg/Nm3 | L66: Monthly mean of half-hourly averages | M66: Highest half- hourly average | N66: Monthly mean of daily averages | O66: Highest daily average
J67: A5 | K67: Jan
K68: Feb
K69: Mar
K70: Apr
K71: May
K72: Jun
K73: Jul
K74: Aug
K75: Sep
K76: Oct
K77: Nov
K78: Dec
K79: Annual | L79: =AVERAGE(L67:L78) ->  | M79: =MAX(M67:M78) -> 0 | N79: =AVERAGE(N67:N78) ->  | O79: =MAX(O67:O78) -> 0

Sheet Template changes log
A1: Log of changes to template (Environment Agency use only)
A3: Date | B3: Description of change | C3: New version number and date
A4: 2024-01-16 | B4: Air (periodic) tab: corrected default O2 reference from 6 to 11% | C4: Version 23.5a (for incinerators) - 16/01/2024
A5: 2024-09-23 | B5: Air (periodic) tab: corrected symbol for Thallium to Tl
A6: 2024-09-23 | B6: Air (periodic) tab: removed last year's references to different emission limit values applying from 03/12/23 and updated all relevant ELVs
A7: 2024-09-23 | B7: Tabs for continuously monitored pollutants (HCl, SO2 etc.): changed terminology in table headings to improve clarity
A8: 2024-09-23 | B8: Tabs for continuously monitored pollutants (HCl, SO2 etc.): removed last year's references to different emission limit values applying from 03/12/23 and updated all relevant ELVs
A9: 2024-09-23 | B9: Perf 1 tab: updated formula for water usage to report m3 rather than litres and corrected error with formula copying operator name
A10: 2024-09-23 | B10: Operational Summary tab: table added on start-ups and shut-downs
A11: 2024-09-23 | B11: Operational Summary tab: table added on dioxins and mercury protocols
A12: 2024-09-23 | B12: Operational Summary tab: table added on AST, QAL 2 and calibration functions
A13: 2024-09-23 | B13: CO2 N2O tab: various changes made to notes to reflect the fact that most plants should now have calibrated CEMS and flow meters + some have C14 samplers and more up to date industry data | C13: Version 24a (for incinerators) - 23/09/24
A14: 2024-11-08 | B14: CO2 N2O tab: Changed the N2O CO2 equivalence factor from 298 to 265 in line with recently updated government greenhouse gas figures: https://www.gov.uk/government/publications/greenhouse-gas-reporting-conversion-factors-2024
A15: 2024-11-08 | B15: CO2 N2O tab: Added an additional requirement for municipal EfW plants to state the yearly average biogenic percentage of the waste by mass, and reference to a document which sets out a methodology for calculating NCV of waste from the results of C14 sampling.
A16: 2024-11-08 | B16: Permit Compliance tab: Two additional columns added + explanatory notes to the table entitled "Summary of non-compliances under the permit" to allow CCS scores to be stated where relevant.
A17: 2024-11-08 | B17: Residue Quality tab: Note added explaining application of TOC and LOI limits and asking operators to report both metrics where measured. | C17: Version 24.1a (for incinerators) - 08/11/24
A18: 2024-11-27 | B18: Operational Summary tab: table added on start-ups and shut-downs | C18: Version 24.2a (for incinerators) - 27/11/24
A19: 2025-11-27 | B19: Cover Page: Print as PDF and Print Report and pdf buttons deleted and blank columns removed; contents page deleted | C19: Version 25.1a (for incinerators) - 27/11/25
A20: 2025-11-27 | B20: Residue Quality tab renamed to "Residues", and Summary of residue handling table moved from Operational Summary tab to Residues tab.
A21: 2025-11-27 | B21: Various changes made to the Operational Data tab including • Reformatting of the rows under the Operational data heading (Rows 3-8) to make it clearer what information is required. • Amendment of the rows under the Energy Usage / Export heading (Rows 26-32) to calculate an “indicative parasitic load” (now excluding energy imported) • Amendment of the unit for gas usage from cubic feet to cubic metres (Row 50) • Some amendments to the first 2 notes and other minor edits • Deleted "Overall Availability, mean avg. of all lines, hrs" row
A22: 2025-11-27 | B22: Operational Summary tab: Note added requiring all emergency shut-downs be listed, irrespective of whether or not they were reportable.
A23: 2025-11-27 | B23: CO2 N2O tab: Note added to ask operators to ensure that relevant data reported here matches that which will be submitted under the Pollution Inventory
